Cogmind - Beta 13 @@@ ROGUE MODE // 2024.04.28 @ 21:18:06 Player: cptwinky Result: Escaped! Performance ------------- Evolutions (9) 4500 Regions Visited (33) 6600 Robots Destroyed (404) 2020 Value Destroyed (19731) 19731 Prototype IDs (82) 1640 Alien Tech Used (4) 800 Bonus (18078) 18078 TOTAL SCORE: 53369 Bonus ------- High Alert Combat Kills 2243 Follower Combat Kills 3760 Entered Garrisons 400 Used RIF Installer 1500 Network Hubs Disabled 200 Met Data Miner 300 Met Zhirov 300 Built Enhanced Grunts 300 A7 Reached Mainframe 300 Met R17 at Cetus 500 Hacked Protovariant 500 Met R17 at Research 2000 Acquired SGEMP 2000 Delivered SGEMP 2000 Win 3000 Friendly Fire -1225 Cogmind --------- Core Integrity 1535/1600 Matter 300/300 Energy 782/990 System Corruption 2% Temperature Cool (15) Movement Treading (156) Location To Epsilon Eridani Parts ------- > --- POWER (3) -------- F-cell Engine Particle Reactor Improved Quantum Reactor > --- PROPULSION (8) --- Centrium Heavy Treads Centrium Heavy Treads Centrium Heavy Treads Biometal Heavy Treads > --- UTILITY (12) ----- Experimental Cooling System Experimental Cooling System Huge Storage Unit Experimental Signal Interpreter Experimental Targeting Computer Advanced Transmission Jammer Improved Propulsion Shielding Centrium Medium Armor Plating Centrium Medium Armor Plating Graphene Brace Advanced EM Disruption Field Advanced Force Field > --- WEAPON (3) ------- Matter Neutralizer Cooled Phase Cannon (fused) Cooled Phase Cannon > --- INVENTORY (25) --- Improved Quantum Reactor Armored Heavy Treads Experimental Cooling System Advanced Energy Well (500) Matter Compressor (250) Advanced Sensor Array Advanced Target Analyzer Improved Propulsion Shielding Improved Propulsion Shielding Advanced Force Field Hacking Suite Improved Hacking Suite Advanced Component Analysis Suite Long-range Tractor Beam Hacking Drone Bay (1/1) Transdimensional Reconstructor Subatomic Replicator Micro-nuke Launcher Point Singularity Launcher Improved Remote Datajack Improved Plasma Cutter Thunder Hammer Peak State ------------ > --- POWER ------------ F-cell Engine Particle Reactor Improved Quantum Reactor > --- PROPULSION ------- Centrium Heavy Treads Centrium Heavy Treads Centrium Heavy Treads Biometal Heavy Treads > --- UTILITY ---------- Experimental Cooling System Experimental Cooling System Huge Storage Unit Experimental Signal Interpreter Experimental Targeting Computer Advanced Transmission Jammer Improved Propulsion Shielding Centrium Medium Armor Plating Centrium Medium Armor Plating Graphene Brace Advanced EM Disruption Field Advanced Force Field > --- WEAPON ----------- Matter Neutralizer Cooled Phase Cannon Cooled Phase Cannon > --- INVENTORY -------- Improved Quantum Reactor Armored Heavy Treads Experimental Cooling System Advanced Energy Well Matter Compressor Advanced Sensor Array Advanced Target Analyzer Improved Propulsion Shielding Improved Propulsion Shielding Advanced Force Field Hacking Suite Improved Hacking Suite Advanced Component Analysis Suite Long-range Tractor Beam Hacking Drone Bay Transdimensional Reconstructor Subatomic Replicator Micro-nuke Launcher Point Singularity Launcher Improved Remote Datajack Improved Plasma Cutter Thunder Hammer [Rating: 217] Favorites ----------- Power Cold Fusion Reactor Engine F-cell Engine Power Core Reinforced Fission Core Reactor Cold Fusion Reactor Propulsion Light Treads Treads Light Treads Leg Improved Carbon-fiber Leg Wheel Armored Huge Wheel Flight Unit Cooled Field Propulsion Drive Utility Experimental Targeting Computer Device Experimental Cooling System Storage Huge Storage Unit Processor Experimental Targeting Computer Hackware Relay Coupler [NC] Protection Improved Medium Armor Plating Artifact Phase Redirector Weapon Cooled Phase Cannon Energy Gun Medium Laser Energy Cannon Cooled Phase Cannon Ballistic Gun Light Assault Rifle Ballistic Cannon Advanced Assault Cannon Launcher Micro-nuke Launcher Special Weapon Remote Datajack Impact Weapon Heavy Mace Slashing Weapon Makeshift Sword Special Melee Weapon Improved Datajack Build | -11 -10 -10 -8 -8 -8 -8 -7 -7 -7 -7 -6 -6 -6 -6 -6 -6 -6 -5 -5 -5 -5 -5 -5 -4 -4 -4 -4 -3 -3 -3 -2 -2 -1 ------- Run | Yrd Mat Sub Mat Gar Mat Sto Fac Low Low Dat Pro Fac Gar Fac Low Low Zio Pro Fac Ext Cet Arc Hub Fac Upp Upp Zhi Pro Res Qua Res Tes Acc Slots Evolved 18 | . . . 4 . . . 2 . . . . 2 . . . . . . 2 . . . . 2 . . . . 2 . 2 . 2 Power 2 | . . . . . . . . . . . . 1 . . . . . . . . . . . . . . . . 1 . . . . Propulsion 5 | . . . 1 . . . 1 . . . . . . . . . . . 1 . . . . . . . . . . . . . 2 Utility 10 | . . . 3 . . . 1 . . . . 1 . . . . . . 1 . . . . 1 . . . . 1 . 2 . . Weapon 1 | . . . . . . . . . . . . . . . . . . . . . . . . 1 . . . . . . . . . Parts Attached 544 | 3 4 19 21 33 4 26 50 12 6 2 6 13 3 12 5 8 4 8 83 15 11 6 13 52 9 7 5 3 14 19 14 40 14 Power 26 | . . 1 2 1 1 3 4 2 . . . 2 . . . . . . 3 1 2 . . 1 . . . . 1 . . 2 . Engine 15 | . . 1 2 1 1 3 1 1 . . . 1 . . . . . . 2 . 1 . . . . . . . 1 . . . . Core 3 | . . . . . . . . . . . . . . . . . . . 1 1 . . . 1 . . . . . . . . . Reactor 8 | . . . . . . . 3 1 . . . 1 . . . . . . . . 1 . . . . . . . . . . 2 . Propulsion 70 | 2 . 5 6 7 3 2 10 1 2 . . 2 3 2 . 1 . 1 7 . 4 2 2 5 . . . . 1 . . 1 1 Treads 57 | 2 . 5 6 5 3 2 2 . 2 . . 1 3 2 . 1 . . 7 . 4 2 2 5 . . . . 1 . . 1 1 Leg 10 | . . . . 2 . . 7 . . . . 1 . . . . . . . . . . . . . . . . . . . . . Wheel 2 | . . . . . . . . 1 . . . . . . . . . 1 . . . . . . . . . . . . . . . Hover . | . . . . . . . . . . . . . . . . . . . . . . . . . . . . . . . . . . Flight 1 | . . . . . . . 1 . . . . . . . . . . . . . . . . . . . . . . . . . . Utility 287 | . 1 2 8 7 . 8 19 4 4 . 1 7 . 8 4 5 4 5 50 12 5 4 6 38 6 4 3 . 10 15 14 25 8 Device 192 | . . 1 3 1 . 2 8 3 3 . 1 4 . 3 3 5 3 5 36 9 2 3 6 28 4 3 2 . 9 10 12 19 4 Storage 8 | . 1 . . . . . 2 1 . . . . . . . . . . 1 . . . . . . 1 . . . 1 1 . . Processor 14 | . . . . . . 2 3 . . . . . . 2 1 . . . . . . . . 3 2 . . . . . . 1 . Hackware 18 | . . . 1 1 . 2 4 . . . . . . . . . . . 8 . . . . 1 . . . . . . . . 1 Protection 46 | . . 1 4 5 . 2 2 . 1 . . 3 . 3 . . 1 . 5 3 3 1 . 6 . . 1 . 1 1 . . 3 Artifact 9 | . . . . . . . . . . . . . . . . . . . . . . . . . . . . . . 3 1 5 . Weapon 161 | 1 3 11 5 18 . 13 17 5 . 2 5 2 . 2 1 2 . 2 23 2 . . 5 8 3 3 2 3 2 4 . 12 5 Energy Gun 1 | . . . . . . . . . . . . . . . . 1 . . . . . . . . . . . . . . . . . Energy Cannon 56 | . . . . 2 . . 3 3 . . 3 1 . 1 1 1 . 1 12 1 . . 3 6 1 2 . 2 1 2 . 8 2 Ballistic Gun 2 | 1 . . . . . 1 . . . . . . . . . . . . . . . . . . . . . . . . . . . Ballistic Cannon 37 | . 3 8 5 9 . 7 5 . . . . . . . . . . . . . . . . . . . . . . . . . . Launcher 20 | . . . . . . 1 2 2 . 1 1 . . . . . . 1 . . . . 1 2 2 1 1 1 1 . . 1 2 Special Weapon 15 | . . . . . . . . . . . . . . . . . . . 8 . . . 1 . . . . . . 2 . 3 1 Impact Weapon 15 | . . 2 . 7 . 1 4 . . . . . . 1 . . . . . . . . . . . . . . . . . . . Slashing Weapon 1 | . . 1 . . . . . . . . . . . . . . . . . . . . . . . . . . . . . . . Piercing Weapon . | . . . . . . . . . . . . . . . . . . . . . . . . . . . . . . . . . . Special Melee Weapon 14 | . . . . . . 3 3 . . 1 1 1 . . . . . . 3 1 . . . . . . 1 . . . . . . Unidentified Prototypes 29 | . . . 1 . . 3 9 1 . . . . . . . 2 1 . 1 . 2 . . 1 . . 3 . . 2 . 2 1 Corrupted Parts 3 | . . . . . . . 1 . . . . . . . . . . . . . . 1 1 . . . . . . . . . . System Corruption 15 | . . . . . . . 3 . . . . . . . . . . . . . . 9 3 . . . . . . . . . . Parts Lost 31 | . . 1 3 10 . 1 9 . . . . 1 . . . . . . . . 1 . 1 1 . . . . . 1 . . 2 Power 2 | . . . . . . . . . . . . 1 . . . . . . . . 1 . . . . . . . . . . . . Propulsion 9 | . . . 1 3 . . 5 . . . . . . . . . . . . . . . . . . . . . . . . . . Utility 15 | . . 1 1 5 . . 3 . . . . . . . . . . . . . . . 1 1 . . . . . 1 . . 2 Weapon 5 | . . . 1 2 . 1 1 . . . . . . . . . . . . . . . . . . . . . . . . . . Highest Loss Streak 8 | . . 1 1 8 . 1 8 . . . . 1 . . . . . . . . 1 . 1 1 . . . . . 1 . . 2 To Critical Strikes 1 | . . . . . . . 1 . . . . . . . . . . . . . . . . . . . . . . . . . . Average Slot Usage (%) 90 | . 97 93 96 95 90 89 89 81 89 92 88 87 97 99 99 99 100 98 95 91 82 75 76 83 85 84 82 85 86 86 87 86 84 Engine 4 | . 14 14 9 9 9 9 4 3 . . . . . . . . . . 3 7 4 5 5 5 5 5 5 5 9 9 8 4 3 Reactor 4 | . . . . . . . 2 3 7 7 7 12 13 13 13 12 12 12 6 . 3 5 5 . . . . . . . . 6 7 Treads 20 | . 28 28 26 25 27 26 16 . 12 15 15 8 21 26 26 27 31 29 28 27 21 16 16 15 15 15 15 15 13 13 12 12 15 Leg 1 | . . . . 1 . . 10 15 2 . . 3 . . . . . . . . . . . . . . . . . . . . . Wheel 1 | . . . . . . . . 6 7 7 7 6 2 . . . . . . . . . . . . . . . . . . . . Device 9 | . . . 9 2 . 3 7 9 14 15 13 12 13 7 5 5 6 6 5 5 5 5 7 13 16 19 17 20 18 16 24 26 23 Storage 6 | . 14 14 9 9 9 9 6 7 7 7 7 6 6 6 6 6 6 6 5 5 5 5 5 5 5 5 5 5 4 4 4 4 3 Processor 12 | . . . . . . 11 17 17 15 15 15 13 13 18 26 25 21 18 16 16 16 16 13 12 13 10 10 10 9 9 8 8 7 Hackware 4 | . . . 8 12 18 5 2 . . . . . . . . . . . 9 8 5 5 5 5 5 5 5 5 4 4 4 4 3 Protection 7 | . 11 7 15 17 9 6 4 . 5 7 5 7 13 12 6 6 8 12 5 5 5 4 5 6 5 5 5 5 9 9 8 4 5 Energy Cannon 9 | . . . . . . . 4 14 15 9 14 12 13 12 13 12 12 12 9 10 11 11 10 14 15 14 10 14 12 12 12 11 10 Ballistic Cannon 5 | . 24 25 18 15 18 16 8 . . . . . . . . . . . . . . . . . . . . . . . . . . Naked Turns . | . . . . . . . . . . . . . . . . . . . . . . . . . . . . . . . . . . Heaviest Build 206 | 11 30 39 60 62 61 62 66 124 124 121 124 143 142 142 141 141 145 145 145 147 151 151 154 171 159 169 169 169 182 195 198 206 195 Greatest Support 315 | 40 40 40 60 67 67 67 95 51 28 28 28 28 88 88 87 114 114 114 181 181 240 240 240 240 230 230 230 230 230 230 230 235 315 Greatest Overweight (x) 5 | . . . 1 2 . . 2 4 4 4 4 5 5 1 1 1 1 5 5 . . . . . . . . . . . . . . Average Overweight (x) . | . . . . . . . . 2 4 3 3 4 2 1 1 1 1 1 . . . . . . . . . . . . . . . Largest Inventory Capacity 25 | 8 15 15 15 15 15 15 15 25 25 25 25 25 25 25 25 25 25 25 25 25 25 25 25 25 25 25 25 25 25 25 25 25 25 Average Capacity 21 | 8 13 15 15 15 15 15 14 20 25 25 25 25 25 25 25 25 25 25 25 25 25 25 25 25 25 25 25 25 25 25 25 25 25 Most Carried 25 | 6 15 15 15 15 15 15 15 22 21 20 25 25 25 25 25 25 25 25 25 25 25 25 25 25 25 25 25 25 25 25 25 25 25 Average Carried 20 | 6 11 14 14 14 14 14 14 15 19 20 22 24 24 24 24 24 24 24 24 24 24 24 24 24 24 24 24 25 24 24 22 24 23 Final Capacity 25 | 8 15 15 15 15 15 15 15 25 25 25 25 25 25 25 25 25 25 25 25 25 25 25 25 25 25 25 25 25 25 25 25 25 25 Final Carried 25 | 6 15 15 15 15 15 15 15 15 20 20 24 24 25 25 25 25 25 25 25 25 25 25 24 25 25 25 25 25 25 24 25 25 23 Class Distribution -------------------- 40% | Mutant 20% | Bothacker-Mutant 15% | Scavenger-Tank 10% | Scavenger-Mutant 5% | Scavenger-Gunner 4% | Hacker-Mutant Dominant Class ---------------- Mutant | -10/Materials Mutant | -10/Subcaves Mutant | -8/Materials Scavenger-Mutant | -8/Garrison Hacker-Mutant | -8/Materials Mutant | -8/Storage Mutant | -7/Factory Mutant | -7/Lower Caves Mutant | -7/Lower Caves Mutant | -7/Data Miner Mutant | -6/Proximity Caves Mutant | -6/Factory Scavenger-Mutant | -6/Garrison Bothacker-Mutant | -6/Factory Bothacker-Mutant | -6/Lower Caves Bothacker-Mutant | -6/Lower Caves Bothacker-Mutant | -6/Zion Bothacker-Mutant | -5/Proximity Caves Bothacker-Mutant | -5/Factory Mutant | -5/Extension Scavenger-Mutant | -5/Cetus Scavenger-Mutant | -5/Archives Scavenger-Mutant | -5/Hub_04(d) Scavenger-Gunner | -4/Factory Scavenger-Tank | -4/Upper Caves Scavenger-Tank | -4/Upper Caves Scavenger-Tank | -4/Zhirov Scavenger-Tank | -3/Proximity Caves Scavenger-Tank | -3/Research Scavenger-Tank | -3/Quarantine Scavenger-Tank | -2/Research Scavenger-Tank | -2/Testing Scavenger-Tank | -1/Access Resources | -11 -10 -10 -8 -8 -8 -8 -7 -7 -7 -7 -6 -6 -6 -6 -6 -6 -6 -5 -5 -5 -5 -5 -5 -4 -4 -4 -4 -3 -3 -3 -2 -2 -1 ----------- Run | Yrd Mat Sub Mat Gar Mat Sto Fac Low Low Dat Pro Fac Gar Fac Low Low Zio Pro Fac Ext Cet Arc Hub Fac Upp Upp Zhi Pro Res Qua Res Tes Acc Matter Collected 13858 | 205 226 371 1124 1137 582 1996 1007 1526 184 . 338 652 61 381 60 110 . 160 999 159 110 60 135 780 17 218 82 25 199 87 238 442 187 Remotely 606 | . . . . . . . . . . . . . . 209 . . . . 74 . . . . . . . . . . . 201 . 122 Salvage Created 18260 | . 272 231 970 585 507 931 759 994 97 . 459 695 247 202 84 92 . 245 1844 1215 266 371 343 2964 111 148 117 48 459 509 463 987 1045 Parts 816 | . 21 14 55 42 22 39 50 21 3 . 13 24 15 8 4 5 . 9 67 48 11 18 24 132 6 12 . 4 12 40 13 39 45 Haulers Intercepted 21 | . 1 . 4 . 1 6 2 . . . . 2 . . . . . . 1 . . . . 2 . . . . 1 . . . 1 Recyclers Shooed 9 | . . . 1 . . 1 . . . . . 3 . 1 . . . . . 1 . . . 1 . . . . . . . . 1 Parts Field Recycled . | . . . . . . . . . . . . . . . . . . . . . . . . . . . . . . . . . . Retrieved Matter . | . . . . . . . . . . . . . . . . . . . . . . . . . . . . . . . . . . Parts Self-Destructed 67 | . . 5 . . . . . 4 2 . 4 . . . 2 11 . 20 . . . . . . 5 11 . 3 . . . . . Prevented 1 | . . . . . . . . . . . . . . . . 1 . . . . . . . . . . . . . . . . . Kills | -11 -10 -10 -8 -8 -8 -8 -7 -7 -7 -7 -6 -6 -6 -6 -6 -6 -6 -5 -5 -5 -5 -5 -5 -4 -4 -4 -4 -3 -3 -3 -2 -2 -1 ------- Run | Yrd Mat Sub Mat Gar Mat Sto Fac Low Low Dat Pro Fac Gar Fac Low Low Zio Pro Fac Ext Cet Arc Hub Fac Upp Upp Zhi Pro Res Qua Res Tes Acc Combat Hostiles Destroyed 320 | . 9 7 22 27 14 23 20 7 1 . 8 4 4 1 . 1 . 6 28 19 3 2 8 45 5 7 . 3 8 6 5 14 13 Melee 3 | . . . . . . . . . . . . . . 1 . . . . 1 1 . . . . . . . . . . . . . Cannons 237 | . 9 7 22 25 14 20 12 . 1 . 2 4 3 . . 1 . . 23 16 3 1 3 30 1 1 . . 5 6 4 13 11 AOE 52 | . . . . . . . 6 7 . . 6 . . . . . . 5 1 . . . 4 8 4 6 . 3 2 . . . . Classes Destroyed 29 | . 6 2 3 3 3 1 2 1 . . 2 . . . . 1 . 1 . . . . 1 . . . . . . . . 3 . Worker 8 | . . . . . . 1 . . . . . 2 . . . . . . 1 . . . 2 1 . . . . 1 . . . . Builder 10 | . 1 . 1 . 1 . 1 . . . . 1 . 1 . . . . . . . . 2 1 . . . . . 1 . . . Tunneler 1 | . . . 1 . . . . . . . . . . . . . . . . . . . . . . . . . . . . . . Hauler 21 | . 1 . 4 . 1 6 2 . . . . 2 . . . . . . 1 . . . . 2 . . . . 1 . . . 1 Recycler 9 | . . . 3 . . 2 1 . . . . 1 . 1 . . . . 1 . . . . . . . . . . . . . . Minesweeper 1 | . . . . . . . . . . . . . . . . 1 . . . . . . . . . . . . . . . . . Mechanic 1 | . . . . . . . 1 . . . . . . . . . . . . . . . . . . . . . . . . . . Operator 15 | . 1 . 1 . . 1 . . . . . . . . . . . . 1 1 . 6 . 2 . . . . . 2 . . . Drone 2 | . . . . . . . . . . . 2 . . . . . . . . . . . . . . . . . . . . . . Watcher 16 | . 1 . . 1 1 . . . . . . . . . . . . . 1 1 2 . . 7 . . . . . 1 1 . . Swarmer 66 | . 3 . 4 8 2 4 4 4 . . . . . . . . . 5 4 2 . . 5 5 4 5 . 3 4 . . . . Grunt 88 | . 6 . 13 6 5 7 6 3 . . . 3 1 1 . . . . 10 6 . . . 20 . . . . . . . . 1 Brawler 4 | . . . . . 2 . . . . . . . . . . . . . 1 1 . . . . . . . . . . . . . Duelist 1 | . . . . . 1 . . . . . . . . . . . . . . . . . . . . . . . . . . . . Protector 1 | . . . . 1 . . . . . . . . . . . . . . . . . . . . . . . . . . . . . Researcher 1 | . . . . . . . . . . . . . . . . . . . . . . . . . . . . . . . . 1 . Sentry 51 | . . . 5 6 3 10 3 . . . . . 2 . . 1 . . 2 7 . 2 . 7 . . . . . . 1 2 . Demolisher 1 | . . . . 1 . . . . . . . . . . . . . . . . . . . . . . . . . . . . . Specialist 8 | . . . . 5 . . 2 . . . . . . . . . . . . 1 . . . . . . . . . . . . . Hunter 31 | . . . . . 1 2 . . 1 . . . 1 . . . . . 2 . . . 2 6 . 2 . . 4 . 4 1 5 Programmer 41 | . . . . . . . 5 . . . . 1 . . . . . . 8 1 . . . 6 . . . . . 6 . 8 6 Heavy 2 | . . . . . . . . . . . . . . . . . . . . . . . 1 . . . . . . . . . 1 Behemoth 4 | . . . . . . . . . . . . . . . . . . 1 1 1 . . . 1 . . . . . . . . . Cetus Guard 3 | . . . . . . . . . . . . . . . . . . . . . 3 . . . . . . . . . . . . Striker 2 | . . . . . . . . . . . . . . . . . . . . . . . . . . . . . . . . 2 . Alpha 7 1 | . . . . . . . . . . . . . . . . . . . . . . . . . . . . . . . . 1 . Cobbler 1 | . . 1 . . . . . . . . . . . . . . . . . . . . . . . . . . . . . . . Subdweller 7 | . . 7 . . . . . . . . . . . . . . . . . . . . . . . . . . . . . . . Decomposer 2 | . . . . . . . . 2 . . . . . . . . . . . . . . . . . . . . . . . . . Packrat 6 | . . . . . . . . 2 . . 3 . . . . . . 1 . . . . . . . . . . . . . . . Samaritan 3 | . . . . . . . . 1 1 . 1 . . . . . . . . . . . . . . . . . . . . . . Thug 6 | . . . . . . . . . . . 5 . . . . . . . . . . . . . 1 . . . . . . . . Mutant 1 | . . . . . . . . . . . 1 . . . . . . . . . . . . . . . . . . . . . . Commander 1 | . . . . . . . . . . . . . . . 1 . . . . . . . . . . . . . . . . . . Best Kill Streak 11 | . 3 2 4 4 4 6 4 4 1 . 6 2 1 1 . 1 . 5 5 3 3 4 8 11 4 5 . 3 4 4 5 3 5 Combat Bots Only 12 | . 2 2 4 4 4 5 4 4 1 . 6 2 1 1 . 1 . 5 5 3 2 2 6 12 4 5 . 3 4 3 5 3 5 Max Kills in Single Turn 6 | . 2 1 2 1 2 2 4 3 1 . 3 2 1 1 1 1 . 5 3 1 1 1 6 2 3 3 . 2 2 1 1 1 1 Gunslinging . | . . . . . . . . . . . . . . . . . . . . . . . . . . . . . . . . . . Exploded 5 | . . . . . . . 4 3 . . 3 . . . . . . 5 1 . . . 4 2 3 3 . 2 2 . . . . Melee 1 | . . . . . . . . . . . . . . 1 . . . . 1 1 . . . . . . . . . . . . . Uniques/NPCs Destroyed . | . . . . . . . . . . . . . . . . . . . . . . . . . . . . . . . . . . Combat | -11 -10 -10 -8 -8 -8 -8 -7 -7 -7 -7 -6 -6 -6 -6 -6 -6 -6 -5 -5 -5 -5 -5 -5 -4 -4 -4 -4 -3 -3 -3 -2 -2 -1 -------- Run | Yrd Mat Sub Mat Gar Mat Sto Fac Low Low Dat Pro Fac Gar Fac Low Low Zio Pro Fac Ext Cet Arc Hub Fac Upp Upp Zhi Pro Res Qua Res Tes Acc Hostile Shots Fired 2129 | . 35 37 142 318 48 110 409 3 4 . 4 42 6 6 1 34 . 41 160 64 26 . 34 249 5 5 . 2 70 44 29 85 116 Missed 659 | . 13 10 40 81 14 30 140 1 2 . 3 16 2 . 1 17 . 19 49 12 6 . 8 72 1 3 . 1 26 4 9 31 48 Damage Taken 20008 | . 206 812 1290 1912 605 1091 3704 44 28 . 22 334 48 149 . 83 . 241 2098 1083 531 27 559 2687 57 22 . 10 372 494 228 592 679 Core 2154 | . 22 186 153 152 95 21 612 16 . . . 12 . 39 . 4 . 42 180 70 . . 31 98 . . . . 21 148 47 140 65 Absorbed by Shields 4769 | . . . 84 602 . 8 . . . . . 130 24 . . 81 . 90 36 259 50 . 141 913 21 8 . 11 398 469 234 615 595 Reduced by Siege Mode 365 | . . . . . . . . . . . . . . . . . . . . 43 . . . 96 . . . . 23 84 18 41 60 Redirected to Core 231 | . . . . . . . . . . . . . . . . . . . . . . . . . . . . . . 90 34 107 . Redirected to Shielding 276 | . . . . . . . . . . . . . . . . . . . . . . . . . . . . . 25 48 39 24 140 Ignored by Resistances 713 | . . . 28 383 . . . . . . . . . . . . . . . . . . . . . . . . . . . 62 240 Regen/Repaired (Parts) 2853 | . . . 54 . . 1114 . . . . . 18 . . . . . . 237 . . . . 993 . . . . 437 . . . . Core Remaining (%) 66 | 100 . 16 . . . 23 . . . . 10 . . . . . . 88 . . . . 71 . . . . 91 . 87 . 87 95 Volleys Fired 1105 | . 25 22 88 86 35 71 64 38 10 . 13 36 12 21 12 9 . 16 126 63 23 27 13 116 6 4 1 4 24 25 21 51 43 Largest 3 | . 2 2 2 2 2 2 2 2 2 . 2 2 2 2 2 2 . 2 2 2 2 2 2 3 3 3 1 3 3 3 3 3 3 Hottest 185 | . 70 74 96 96 96 96 92 80 80 . 80 80 120 80 80 80 . 80 80 80 120 80 80 115 115 115 35 115 115 115 115 185 185 Shots Fired 2221 | . 50 44 175 151 70 131 121 72 20 . 23 58 17 33 17 16 . 31 199 114 45 54 24 294 14 6 1 8 59 68 63 128 115 Gun 4 | . 4 . . . . . . . . . . . . . . . . . . . . . . . . . . . . . . . . Cannon 2162 | . 46 44 175 151 70 131 120 69 20 . 20 58 17 33 17 16 . 30 176 114 45 54 23 283 12 3 1 6 58 68 63 127 112 Launcher 29 | . . . . . . . 1 3 . . 3 . . . . . . 1 . . . . 1 11 2 3 . 2 1 . . . 1 Special 26 | . . . . . . . . . . . . . . . . . . . 23 . . . . . . . . . . . . 1 2 Kinetic 700 | . 48 44 175 136 70 131 96 . . . . . . . . . . . . . . . . . . . . . . . . . . Thermal 1451 | . 2 . . . . . 24 69 20 . 20 58 17 33 17 16 . 30 176 114 45 54 23 283 12 3 1 6 58 68 63 127 112 Explosive 27 | . . . . . . . . 3 . . 3 . . . . . . 1 . . . . 1 11 2 3 . 2 1 . . . . Electromagnetic 16 | . . . . 15 . . 1 . . . . . . . . . . . . . . . . . . . . . . . . . . Robot Hit Streak 45 | . 7 10 17 9 14 24 15 26 27 . 7 13 10 8 7 9 . 15 30 21 16 13 6 36 42 44 45 . 14 27 20 20 16 Robot Miss Streak 6 | . 4 1 4 5 2 2 4 3 1 . 3 1 . 1 1 1 . 6 2 2 2 2 6 6 . . . 1 6 2 2 3 3 Penetration Max . | . . . . . . . . . . . . . . . . . . . . . . . . . . . . . . . . . . Secondary Targets . | . . . . . . . . . . . . . . . . . . . . . . . . . . . . . . . . . . Shots Hit Robots 1441 | . 32 33 107 90 50 115 90 27 9 1 15 32 6 20 5 10 . 7 136 92 33 37 17 193 6 2 4 . 30 41 31 93 77 Core Hits 647 | . 14 13 46 27 21 32 27 33 3 . 31 15 5 5 3 4 . 10 39 38 15 16 19 101 5 10 . 5 15 16 13 36 30 Critical Kills 18 | . . . . . . . . 1 . . 1 . 1 . . . . . 2 1 . 1 1 5 . . 1 . . . 1 1 2 Critical Parts Destroyed 5 | . . . . 2 . 3 . . . . . . . . . . . . . . . . . . . . . . . . . . . Critical Strikes 52 | . 2 1 6 8 2 8 7 1 . . 1 . 1 . . . . . 2 1 . 1 1 5 . . 1 . . . 1 1 2 Meltdown 18 | . . . . . . . . 1 . . 1 . 1 . . . . . 2 1 . 1 1 5 . . 1 . . . 1 1 2 Blast 29 | . 2 1 6 6 2 5 7 . . . . . . . . . . . . . . . . . . . . . . . . . . Smash 5 | . . . . 2 . 3 . . . . . . . . . . . . . . . . . . . . . . . . . . . Melee Attacks 98 | . . 12 . 31 . 18 17 . . 1 1 . . 2 . . . . 3 10 . . . . . . 3 . . . . . . Impact 63 | . . 11 . 31 . 11 8 . . . . . . 2 . . . . . . . . . . . . . . . . . . . Slashing 1 | . . 1 . . . . . . . . . . . . . . . . . . . . . . . . . . . . . . . Piercing . | . . . . . . . . . . . . . . . . . . . . . . . . . . . . . . . . . . Sneak Attacks 26 | . . 1 . . . 6 5 . . 1 1 . . . . . . . . 9 . . . . . . 3 . . . . . . Combat Hostiles 3 | . . . . . . 2 1 . . . . . . . . . . . . . . . . . . . . . . . . . . Follow-up Attacks . | . . . . . . . . . . . . . . . . . . . . . . . . . . . . . . . . . . Damage Inflicted 54857 | . 631 667 2541 2826 1379 3305 3902 1585 341 . 1223 1195 210 769 173 361 . 525 4853 3324 1255 1323 927 9441 576 535 37 181 1296 1682 1042 3697 3055 Guns 35 | . 35 . . . . . . . . . . . . . . . . . . . . . . . . . . . . . . . . Cannons 45232 | . 576 593 2521 2453 1378 2667 2263 1003 341 . 430 1195 210 756 173 361 . 228 4496 3243 1255 1323 620 6522 174 30 37 . 1018 1682 1042 3608 3034 Explosions 7818 | . . . . . . . 1429 582 . . 793 . . . . . . 297 253 . . . 307 2836 402 505 . 181 233 . . . . Melee 1166 | . . 74 . 351 . 542 199 . . . . . . . . . . . . . . . . . . . . . . . . . . Ramming 606 | . 20 . 20 22 1 96 11 . . . . . . 13 . . . . 104 81 . . . 83 . . . . 45 . . 89 21 Kinetic 11885 | . 585 593 2521 2308 1378 2667 1833 . . . . . . . . . . . . . . . . . . . . . . . . . . Thermal 34712 | . 26 . . . . . 1788 1003 341 . 430 1195 210 756 173 361 . 228 4496 3243 1255 1323 620 6639 174 30 37 . 1018 1682 1042 3608 3034 Explosive 6272 | . . . . . . . . 582 . . 793 . . . . . . 297 253 . . . 307 2719 402 505 . 181 233 . . . . Electromagnetic 216 | . . . . 145 . . 71 . . . . . . . . . . . . . . . . . . . . . . . . . . Impact 1092 | . . . . 351 . 542 199 . . . . . . . . . . . . . . . . . . . . . . . . . . Slashing 74 | . . 74 . . . . . . . . . . . . . . . . . . . . . . . . . . . . . . . Piercing . | . . . . . . . . . . . . . . . . . . . . . . . . . . . . . . . . . . Highest Corruption 11 | . . . . . . . 3 . . . . 3 3 3 . . . . 2 2 2 9 7 3 3 . . . . 11 . 7 2 Average Corruption 2 | . . . . . . . 1 . . . . 1 3 3 . . . . 1 2 2 2 4 1 3 . . . . 7 . 5 1 Corruption Purged 21 | . . . . . . . 7 . . . . . . . . . . . . . . 11 . . 3 . . . . . . . . Corruption Blocked . | . . . . . . . . . . . . . . . . . . . . . . . . . . . . . . . . . . Effects 145 | . . . . . . . 6 . . . . 11 18 14 . . . . 7 20 4 1 . 14 1 . . . . 14 . 32 3 Message Errors 43 | . . . . . . . 2 . . . . 3 7 2 . . . . 1 8 . . . 3 . . . . . 5 . 11 1 Matter Fused 32 | . . . . . . . 1 . . . . 3 4 4 . . . . 3 2 1 . . 3 1 . . . . 2 . 7 1 Heat Flow Errors 16 | . . . . . . . 1 . . . . 3 3 2 . . . . 1 1 . . . 1 . . . . . 1 . 3 . Energy Discharges 14 | . . . . . . . . . . . . 1 1 3 . . . . . 4 2 . . 1 . . . . . . . 1 1 Parts Rejected 1 | . . . . . . . . . . . . . . . . . . . . 1 . . . . . . . . . . . . . Parts Fused 1 | . . . . . . . . . . . . . . . . . . . . . . . . . . . . . . 1 . . . Data Loss (minor) 20 | . . . . . . . 2 . . . . 1 1 2 . . . . 1 3 1 1 . 1 . . . . . 3 . 4 . Data Loss (major) 8 | . . . . . . . . . . . . . 2 1 . . . . . 1 . . . 2 . . . . . 1 . 1 . Misfires 2 | . . . . . . . . . . . . . . . . . . . . . . . . 1 . . . . . . . 1 . Alerts 4 | . . . . . . . . . . . . . . . . . . . 1 . . . . 1 . . . . . . . 2 . Weapon Failures 4 | . . . . . . . . . . . . . . . . . . . . . . . . 1 . . . . . 1 . 2 . Overload Shots 2 | . . . . . . . . . . . . . 1 . . . . . . . 1 . . . . . . . . . . . . Overflow Damage 2344 | . 17 . 41 215 27 322 375 188 . . 105 13 . 9 . 33 . 20 200 40 19 93 23 273 8 . 25 . 14 52 16 90 126 Projectiles 1489 | . 17 . 41 37 27 25 42 187 . . 101 13 . 9 . 33 . . 200 38 19 93 23 273 . . 25 . 12 52 16 80 126 Explosions 249 | . . . . . . . 214 1 . . 4 . . . . . . 20 . . . . . . 8 . . . 2 . . . . Melee 606 | . . . . 178 . 297 119 . . . . . . . . . . . . 2 . . . . . . . . . . . 10 . Knockbacks 117 | . 2 8 34 22 9 26 16 . . . . . . . . . . . . . . . . . . . . . . . . . . Impact 8 | . . . . . . 6 2 . . . . . . . . . . . . . . . . . . . . . . . . . . Kinetic 96 | . 2 7 27 21 9 17 13 . . . . . . . . . . . . . . . . . . . . . . . . . . Secondary 13 | . . 1 7 1 . 3 1 . . . . . . . . . . . . . . . . . . . . . . . . . . Self-Inflicted Damage 122 | . . . . . . . 109 13 . . . . . . . . . . . . . . . . . . . . . . . . . Shots 2 | . . . . . . . 1 1 . . . . . . . . . . . . . . . . . . . . . . . . . Rammed 51 | . 5 . 3 7 1 11 1 . . . . . . 1 . . . . 8 4 . . . 2 . . . . 1 . . 6 1 Targets Rammed 59 | . 6 . 3 7 1 13 1 . . . . . . 2 . . . . 9 6 . . . 3 . . . . 1 . . 6 1 Kicked . | . . . . . . . . . . . . . . . . . . . . . . . . . . . . . . . . . . Crushed 8 | . 1 . . . . 2 . . . . . . . 1 . . . . 1 2 . . . 1 . . . . . . . . . Highest Temperature 503 | . 96 238 111 503 352 398 397 . . . . 270 210 262 . . . 6 224 230 328 336 168 274 . . . . . 115 . 173 . Average Temperature 95 | . 28 117 34 132 118 109 107 . . . . 118 82 91 . . . 4 61 54 99 130 66 142 . . . . . 115 . 100 . Received Heat Transfer 3775 | . 69 355 609 402 81 282 420 . . . 9 34 . 72 . 22 . 20 402 218 82 . . 644 18 . . . . . 4 28 4 Effects 18 | . . . . 7 3 6 . . . . . 1 . . . . . . 1 . . . . . . . . . . . . . . Shutdowns 4 | . . . . 2 . 2 . . . . . . . . . . . . . . . . . . . . . . . . . . . Energy Bleed 2 | . . . . . 1 . . . . . . . . . . . . . 1 . . . . . . . . . . . . . . Interference 8 | . . . . 1 2 4 . . . . . 1 . . . . . . . . . . . . . . . . . . . . . Matter Decay 2 | . . . . 2 . . . . . . . . . . . . . . . . . . . . . . . . . . . . . Damage (major) 2 | . . . . 2 . . . . . . . . . . . . . . . . . . . . . . . . . . . . . Siege Activations 32 | . . . . . . . . . . . . . . . . . . . 2 3 . . . 7 . 1 . . 2 2 1 11 3 Total Turns 631 | . . . . . . . . . . . . . . . . . . . 72 58 . . . 92 . 6 . . 22 61 32 188 100 Longest Duration 59 | . . . . . . . . . . . . . . . . . . . 59 32 . . . 22 . 6 . . 20 33 32 55 55 Robots Corrupted . | . . . . . . . . . . . . . . . . . . . . . . . . . . . . . . . . . . Combat Hostiles . | . . . . . . . . . . . . . . . . . . . . . . . . . . . . . . . . . . Parts Fried 3 | . . . . 1 . 1 1 . . . . . . . . . . . . . . . . . . . . . . . . . . Impact Corruptions 23 | . . . . 6 . 9 5 . . . . . . . . . . . . 1 . . . . . . . . . . . 2 . Robots Melted 27 | . . . . . . . 1 1 . . 1 . 1 . . . . 1 3 2 . 1 1 8 . . 1 . 1 . 1 2 2 Combat Hostiles 23 | . . . . . . . 1 . . . . . 1 . . . . 1 3 2 . 1 1 7 . . 1 . 1 . 1 1 2 Parts Melted 117 | . . . . . . . . . 2 . 1 2 2 . . . . 6 22 9 . 5 6 20 1 . . . 6 4 3 17 11 Heat Transferred 35203 | . 74 . . . . . 1244 1036 333 . 444 1221 222 777 185 370 . 222 4181 3125 1295 1369 629 7566 211 50 50 . 1216 1788 1240 3469 2886 Parts Sabotaged . | . . . . . . . . . . . . . . . . . . . . . . . . . . . . . . . . . . Parts Stolen . | . . . . . . . . . . . . . . . . . . . . . . . . . . . . . . . . . . Parts Stripped . | . . . . . . . . . . . . . . . . . . . . . . . . . . . . . . . . . . Power Chain Reactions . | . . . . . . . . . . . . . . . . . . . . . . . . . . . . . . . . . . Alert | -11 -10 -10 -8 -8 -8 -8 -7 -7 -7 -7 -6 -6 -6 -6 -6 -6 -6 -5 -5 -5 -5 -5 -5 -4 -4 -4 -4 -3 -3 -3 -2 -2 -1 ------- Run | Yrd Mat Sub Mat Gar Mat Sto Fac Low Low Dat Pro Fac Gar Fac Low Low Zio Pro Fac Ext Cet Arc Hub Fac Upp Upp Zhi Pro Res Qua Res Tes Acc Peak Influence 1278 | . 181 . 235 1278 958 453 396 . . . . 411 917 495 . . . . 643 808 689 573 670 1152 . . . . 193 153 292 251 730 Initial 622 | . . . . 37 622 242 79 . . . . 150 287 480 . . . . 317 154 452 275 77 230 . . . . . 6 85 90 104 Average 333 | . 90 . 62 649 772 260 213 . . . . 263 746 394 . . . . 304 410 561 437 389 432 . . . . 65 73 135 153 384 Maximum Alert Level 4 | . . . 1 4 3 2 1 . . . . 2 3 2 . . . . 2 3 2 2 2 4 . . . . . . 1 1 3 Low Security (%) 34 | 100 100 . 91 11 . 31 31 . . . . 27 . . . . . . 17 32 . . 19 10 . . . . 100 100 92 81 24 Level 1 36 | . . . 8 10 . 63 68 . . . . 70 10 57 . . . . 55 5 . 56 21 55 . . . . . . 7 18 26 Level 2 18 | . . . . 28 13 5 . . . . . 2 19 42 . . . . 27 59 100 43 59 17 . . . . . . . . 43 Level 3 9 | . . . . 38 86 . . . . . . . 69 . . . . . . 3 . . . 12 . . . . . . . . 5 Level 4 1 | . . . . 10 . . . . . . . . . . . . . . . . . . . 3 . . . . . . . . . Level 5 . | . . . . . . . . . . . . . . . . . . . . . . . . . . . . . . . . . . High Security . | . . . . . . . . . . . . . . . . . . . . . . . . . . . . . . . . . . Max Security . | . . . . . . . . . . . . . . . . . . . . . . . . . . . . . . . . . . Squads Dispatched 61 | . 2 . 3 . 4 4 6 . . . . 7 . 1 . . . . 7 3 . . 1 8 . . . . 5 2 1 4 3 Investigation 17 | . 2 . 2 . 1 3 1 . . . . 4 . . . . . . 2 . . . . 1 . . . . 1 . . . . Extermination 17 | . . . . . . . 1 . . . . 2 . . . . . . 4 . . . . 4 . . . . . 2 1 2 1 Reinforcement 20 | . . . . . . 1 4 . . . . 1 . 1 . . . . 1 2 . . 1 2 . . . . 4 . . 1 2 Assault 3 | . . . . . . . . . . . . . . . . . . . . 1 . . . 1 . . . . . . . 1 . Garrison 4 | . . . 1 . 3 . . . . . . . . . . . . . . . . . . . . . . . . . . . . Intercept . | . . . . . . . . . . . . . . . . . . . . . . . . . . . . . . . . . . Searches Triggered 3 | . . . . . . . . . . . . . . . . . . . 1 2 . . . . . . . . . . . . . Construction Impeded . | . . . . . . . . . . . . . . . . . . . . . . . . . . . . . . . . . . Haulers Reinforced 6 | . . . . . . . 1 . . . . . . 1 . . . . . . . . . 2 . . . . 1 . . . 1 Active Scanning Responses . | . . . . . . . . . . . . . . . . . . . . . . . . . . . . . . . . . . Cargo Convoy Interrupts 1 | . . . . . . . 1 . . . . . . . . . . . . . . . . . . . . . . . . . . Stealth | -11 -10 -10 -8 -8 -8 -8 -7 -7 -7 -7 -6 -6 -6 -6 -6 -6 -6 -5 -5 -5 -5 -5 -5 -4 -4 -4 -4 -3 -3 -3 -2 -2 -1 --------- Run | Yrd Mat Sub Mat Gar Mat Sto Fac Low Low Dat Pro Fac Gar Fac Low Low Zio Pro Fac Ext Cet Arc Hub Fac Upp Upp Zhi Pro Res Qua Res Tes Acc Distress Signals 17 | . . . 1 . 1 3 2 . . . . . . . . . . . . 1 . . . 1 . . . . 8 . . . . Communications Jammed 416 | . . . . . . . . . . . . 1 . . . . . . 4 261 32 . 1 54 . . . . 2 . . 16 45 Distress Signals 410 | . . . . . . . . . . . . . . . . . . . 4 261 32 . 1 53 . . . . 2 . . 16 41 Times Spotted 570 | . 13 7 32 33 17 52 49 7 1 . 7 16 13 6 1 5 . 10 63 44 10 18 18 70 2 5 . 2 10 11 7 20 21 Peak Tracking Total 12 | . 3 2 4 7 5 4 12 4 1 . 5 4 5 3 1 2 . 5 7 6 4 2 5 5 1 2 . 2 4 3 3 3 5 Tactical Retreats 17 | . 1 . 2 4 1 3 . . . . . . . . . 1 . . 2 3 . . . . . . . . . . . . . Traps | -11 -10 -10 -8 -8 -8 -8 -7 -7 -7 -7 -6 -6 -6 -6 -6 -6 -6 -5 -5 -5 -5 -5 -5 -4 -4 -4 -4 -3 -3 -3 -2 -2 -1 ------- Run | Yrd Mat Sub Mat Gar Mat Sto Fac Low Low Dat Pro Fac Gar Fac Low Low Zio Pro Fac Ext Cet Arc Hub Fac Upp Upp Zhi Pro Res Qua Res Tes Acc Traps Triggered 23 | . . . 1 4 1 1 . . . . . 3 6 3 . . . . 1 2 . . . 1 . . . . . . . . . Indirectly . | . . . . . . . . . . . . . . . . . . . . . . . . . . . . . . . . . . Trap Hack Attempts 69 | . . . . . . . 5 . . . . 32 . . . . . . 32 . . . . . . . . . . . . . . Triggered . | . . . . . . . . . . . . . . . . . . . . . . . . . . . . . . . . . . Disarmed . | . . . . . . . . . . . . . . . . . . . . . . . . . . . . . . . . . . Reprogrammed 11 | . . . . . . . 2 . . . . 6 . . . . . . 3 . . . . . . . . . . . . . . Reused 4 | . . 2 . . . . 1 . . . . . . . . . . 1 . . . . . . . . . . . . . . . Traps Extracted 3 | . . . . . . . . . . . . . . . . . . . 3 . . . . . . . . . . . . . . Installed 3 | . . 2 . . . . . . . . . . . . . . . 1 . . . . . . . . . . . . . . . Triggered 3 | . . . . . . . 2 . . . . . . . . . . 1 . . . . . . . . . . . . . . . Most Traps Carried 3 | . . 1 . . . . . . . . . . . . . 1 1 1 3 3 3 . . . . . . . . . . . . Machines | -11 -10 -10 -8 -8 -8 -8 -7 -7 -7 -7 -6 -6 -6 -6 -6 -6 -6 -5 -5 -5 -5 -5 -5 -4 -4 -4 -4 -3 -3 -3 -2 -2 -1 ---------- Run | Yrd Mat Sub Mat Gar Mat Sto Fac Low Low Dat Pro Fac Gar Fac Low Low Zio Pro Fac Ext Cet Arc Hub Fac Upp Upp Zhi Pro Res Qua Res Tes Acc Machines Disabled 69 | . . . 1 4 . 8 5 . . . . 7 4 2 2 1 . . 6 4 1 2 5 7 . . . . . 4 2 1 3 Max in Single Turn 3 | . . . 1 1 . 1 2 . . . . 3 1 1 1 1 . . 3 1 1 1 1 2 . . . . . 1 1 1 1 Garrison Access 9 | . . . . . . 1 1 . . . . . . 1 . . . . 3 . . . . 2 . . . . . . . 1 . Garrison Relay 4 | . . . . 3 . . . . . . . . 1 . . . . . . . . . . . . . . . . . . . . Network Hub 1 | . . . . . . . . . . . . . . . . . . . . . . . 1 . . . . . . . . . . Energy Cycler 1 | . . . . . . . . . . . . . . . . . . . . . . . . . . . . . . . . . 1 Machines Repaired . | . . . . . . . . . . . . . . . . . . . . . . . . . . . . . . . . . . Machines Dismantled 5 | . . . . . . . . . . . . . . . . . . . . . . . 1 . . . . . . 2 . 2 . Machines Sabotaged . | . . . . . . . . . . . . . . . . . . . . . . . . . . . . . . . . . . Overloaded Fab Kills . | . . . . . . . . . . . . . . . . . . . . . . . . . . . . . . . . . . Hacking | -11 -10 -10 -8 -8 -8 -8 -7 -7 -7 -7 -6 -6 -6 -6 -6 -6 -6 -5 -5 -5 -5 -5 -5 -4 -4 -4 -4 -3 -3 -3 -2 -2 -1 --------- Run | Yrd Mat Sub Mat Gar Mat Sto Fac Low Low Dat Pro Fac Gar Fac Low Low Zio Pro Fac Ext Cet Arc Hub Fac Upp Upp Zhi Pro Res Qua Res Tes Acc Machines Accessed 108 | . 7 . 10 3 3 14 9 1 . 3 . 13 1 3 1 1 . . 14 . 1 . . 12 1 1 4 . 2 1 . 3 . Terminals 45 | . 5 . 7 3 2 9 2 . . . . 6 1 2 . . . . 3 . 1 . . 3 . . . . . . . 1 . Fabricators 13 | . . . . . . . 1 . . . . 2 . . . . . . 4 . . . . 4 . . . . 1 . . 1 . Repair Stations 13 | . 1 . 1 . . 2 1 . . . . 2 . . . . . . 3 . . . . 1 . . . . 1 1 . . . Recycling Units 13 | . 1 . 1 . 1 2 4 . . . . 2 . . . . . . . . . . . 2 . . . . . . . . . Scanalyzers 1 | . . . . . . . . . . . . . . . . . . . 1 . . . . . . . . . . . . . . Garrison Access 11 | . . . 1 . . 1 1 . . . . 1 . 1 . . . . 3 . . . . 2 . . . . . . . 1 . Total Hacks 329 | . 21 . 34 9 8 36 20 1 . 25 . 38 2 9 6 1 . . 34 . 3 . . 47 1 1 17 . 6 2 . 8 . Successful 180 | . 5 . 17 5 4 18 9 1 . 25 . 15 1 4 6 1 . . 21 . . . . 21 1 1 17 . 4 . . 4 . Failed 148 | . 16 . 16 4 4 18 11 . . . . 23 1 5 . . . . 13 . 3 . . 26 . . . . 2 2 . 4 . Catastrophic 34 | . 3 . 3 . . 3 6 . . . . 3 . . . . . . 3 . 2 . . 7 . . . . 1 2 . 1 . Database Lockouts 1 | . . . 1 . . . . . . . . . . . . . . . . . . . . . . . . . . . . . . Manual 116 | . 15 . 25 4 6 16 6 . . . . 11 1 2 . . . . 11 . 1 . . 17 . . . . . . . 1 . Terminals 138 | . 14 . 26 9 5 21 5 . . . . 18 2 7 . . . . 10 . 3 . . 15 . . . . . . . 3 . Fabricators 27 | . . . . . . . 2 . . . . 6 . . . . . . 6 . . . . 8 . . . . 2 . . 3 . Repair Stations 50 | . 2 . 2 . . 8 3 . . . . 6 . . . . . . 7 . . . . 16 . . . . 4 2 . . . Recycling Units 33 | . 5 . 2 . 3 5 8 . . . . 5 . . . . . . . . . . . 5 . . . . . . . . . Scanalyzers 5 | . . . . . . . . . . . . . . . . . . . 5 . . . . . . . . . . . . . . Garrison Access 24 | . . . 4 . . 2 2 . . . . 3 . 2 . . . . 6 . . . . 3 . . . . . . . 2 . Terminal Hacks 88 | . 3 . 10 3 1 6 1 1 . 25 . 4 1 1 6 1 . . 3 . . . . 2 1 1 17 . . . . 1 . Record 17 | . . . . . . . . . . 6 . . . . 6 . . . . . . . . . . . 5 . . . . . . Part Schematic 14 | . . . . . . . . . . 10 . . . . . . . . . . . . . . . . 4 . . . . . . Robot Schematic 6 | . . . . . . . . . . 6 . . . . . . . . . . . . . . . . . . . . . . . Robot Analysis 11 | . 3 . 3 . . . . . . . . 1 . . . . . . . . . . . . . . 4 . . . . . . Prototype ID Bank 7 | . . . . . . . . . . 3 . . . . . . . . . . . . . . . . 4 . . . . . . Open Door 7 | . . . . 1 . 2 . 1 . . . . . . . 1 . . . . . . . . 1 1 . . . . . . . Branch Access Points 2 | . . . . . . . 1 . . . . . . . . . . . 1 . . . . . . . . . . . . . . Emergency Access Points 2 | . . . . 1 . . . . . . . . 1 . . . . . . . . . . . . . . . . . . . . Fabricator Index 1 | . . . . . . . . . . . . 1 . . . . . . . . . . . . . . . . . . . . . Garrison Index 2 | . . . 1 . . . . . . . . 1 . . . . . . . . . . . . . . . . . . . . . Unreport Threat 7 | . . . 2 . 1 1 . . . . . . . . . . . . 2 . . . . 1 . . . . . . . . . Locate Traps 4 | . . . . . . 2 . . . . . 1 . . . . . . . . . . . 1 . . . . . . . . . Zone Layout 6 | . . . 4 . . 1 . . . . . . . 1 . . . . . . . . . . . . . . . . . . . Patrol Navigation 1 | . . . . 1 . . . . . . . . . . . . . . . . . . . . . . . . . . . . . Protovariant Controls 1 | . . . . . . . . . . . . . . . . . . . . . . . . . . . . . . . . 1 . Fabricator Hacks 7 | . . . . . . . 1 . . . . 3 . . . . . . 1 . . . . 1 . . . . 1 . . . . Network Status 4 | . . . . . . . 1 . . . . 1 . . . . . . . . . . . 1 . . . . 1 . . . . Load Schematic 1 | . . . . . . . . . . . . 1 . . . . . . . . . . . . . . . . . . . . . Build 2 | . . . . . . . . . . . . 1 . . . . . . 1 . . . . . . . . . . . . . . Repair Station Hacks 29 | . 1 . 2 . . 6 1 . . . . 2 . . . . . . 3 . . . . 11 . . . . 3 . . . . Scan Component 16 | . . . 1 . . 3 1 . . . . 1 . . . . . . 2 . . . . 6 . . . . 2 . . . . Repair 12 | . . . 1 . . 3 . . . . . 1 . . . . . . 1 . . . . 5 . . . . 1 . . . . Refit 1 | . 1 . . . . . . . . . . . . . . . . . . . . . . . . . . . . . . . . Recycling Unit Hacks 6 | . . . . . 2 2 1 . . . . 1 . . . . . . . . . . . . . . . . . . . . . Process 2 | . . . . . 1 1 . . . . . . . . . . . . . . . . . . . . . . . . . . . Retrieve Matter 2 | . . . . . 1 1 . . . . . . . . . . . . . . . . . . . . . . . . . . . Retrieve Components 2 | . . . . . . . 1 . . . . 1 . . . . . . . . . . . . . . . . . . . . . Scanalyzer 5 | . . . . . . . . . . . . . . . . . . . 5 . . . . . . . . . . . . . . Insert Component 2 | . . . . . . . . . . . . . . . . . . . 2 . . . . . . . . . . . . . . Analyze 3 | . . . . . . . . . . . . . . . . . . . 3 . . . . . . . . . . . . . . Garrison Access Hacks 19 | . . . 1 . . 2 2 . . . . 1 . 2 . . . . 6 . . . . 3 . . . . . . . 2 . Unlock Access 2 | . . . 1 . . . . . . . . 1 . . . . . . . . . . . . . . . . . . . . . Seal Access 9 | . . . . . . 1 1 . . . . . . 1 . . . . 3 . . . . 2 . . . . . . . 1 . Coupler Status 8 | . . . . . . 1 1 . . . . . . 1 . . . . 3 . . . . 1 . . . . . . . 1 . Unauthorized Hacks 26 | . 1 . 4 2 1 2 3 . . . . 4 . 1 . . . . 3 . . . . 4 . . . . . . . 1 . Terminals 11 | . . . 2 2 . 2 1 . . . . 2 . 1 . . . . . . . . . 1 . . . . . . . . . Track 2 | . . . . 1 . 1 . . . . . . . . . . . . . . . . . . . . . . . . . . . Botnet 6 | . . . 2 . . . 1 . . . . 2 . 1 . . . . . . . . . . . . . . . . . . . Disrupt 3 | . . . . 1 . 1 . . . . . . . . . . . . . . . . . 1 . . . . . . . . . Fabricators 8 | . . . . . . . 1 . . . . . . . . . . . 3 . . . . 3 . . . . . . . 1 . Liberate 8 | . . . . . . . 1 . . . . . . . . . . . 3 . . . . 3 . . . . . . . 1 . Repair Stations 1 | . . . . . . . . . . . . 1 . . . . . . . . . . . . . . . . . . . . . Mechanics 1 | . . . . . . . . . . . . 1 . . . . . . . . . . . . . . . . . . . . . Recycling Units 4 | . 1 . 1 . 1 . 1 . . . . . . . . . . . . . . . . . . . . . . . . . . Reject 2 | . . . 1 . . . 1 . . . . . . . . . . . . . . . . . . . . . . . . . . Mask 1 | . . . . . 1 . . . . . . . . . . . . . . . . . . . . . . . . . . . . Tunnel 1 | . 1 . . . . . . . . . . . . . . . . . . . . . . . . . . . . . . . . Scanalyzers . | . . . . . . . . . . . . . . . . . . . . . . . . . . . . . . . . . . Garrison Access 2 | . . . 1 . . . . . . . . 1 . . . . . . . . . . . . . . . . . . . . . Reprogram 2 | . . . 1 . . . . . . . . 1 . . . . . . . . . . . . . . . . . . . . . Data Cores Recovered 6 | . . . 1 . . . . . . . . . . . . . . . 1 . . . 1 2 . . . . . 1 . . . Used 2 | . . . 1 . . . . . . . . . . . . . . . . . . . . 1 . . . . . . . . . Hacking Detections 88 | . 7 . 10 3 3 12 8 . . . . 12 1 3 . . . . 12 . 2 . . 9 . . . . 2 1 . 3 . Full Trace Events 13 | . 1 . . . . 5 1 . . . . 3 . . . . . . 2 . . . . 1 . . . . . . . . . Feedback Events . | . . . . . . . . . . . . . . . . . . . . . . . . . . . . . . . . . . Feedback Blocked . | . . . . . . . . . . . . . . . . . . . . . . . . . . . . . . . . . . Robot Schematics Acquired 7 | . . . . . . . . . . 6 . . . . . . . . . . . . . . . . . . . . . 1 . Robots Built . | . . . . . . . . . . . . . . . . . . . . . . . . . . . . . . . . . . Authchips . | . . . . . . . . . . . . . . . . . . . . . . . . . . . . . . . . . . Time . | . . . . . . . . . . . . . . . . . . . . . . . . . . . . . . . . . . Total Robot Build Rating . | . . . . . . . . . . . . . . . . . . . . . . . . . . . . . . . . . . Part Schematics Acquired 19 | . . . . . . . . . . 10 . . . . . . . . 2 . . . . . . . 4 . . . . 3 . Parts Built 3 | . . . . . . . . . . . . 2 . . . . . . 1 . . . . . . . . . . . . . . Authchips . | . . . . . . . . . . . . . . . . . . . . . . . . . . . . . . . . . . Time 181 | . . . . . . . . . . . . 53 . . . . . . 128 . . . . . . . . . . . . . . Total Part Build Rating 20 | . . . . . . . . . . . . 12 . . . . . . 8 . . . . . . . . . . . . . . Parts Repaired 12 | . . . 1 . . 3 . . . . . 1 . . . . . . 1 . . . . 5 . . . . 1 . . . . Time 955 | . . . 26 . . 156 . . . . . 22 . . . . . . 124 . . . . 519 . . . . 108 . . . . Parts Recycled . | . . . . . . . . . . . . . . . . . . . . . . . . . . . . . . . . . . Recycled Matter 940 | . . . . . 385 555 . . . . . . . . . . . . . . . . . . . . . . . . . . . Retrieved Matter 1094 | . . . . . 385 709 . . . . . . . . . . . . . . . . . . . . . . . . . . . Retrieved Components 12 | . . . . . . . 3 . . . . 9 . . . . . . . . . . . . . . . . . . . . . Parts Scanalyzed 2 | . . . . . . . . . . . . . . . . . . . 2 . . . . . . . . . . . . . . Part Schematics Acquired 2 | . . . . . . . . . . . . . . . . . . . 2 . . . . . . . . . . . . . . Parts Damaged . | . . . . . . . . . . . . . . . . . . . . . . . . . . . . . . . . . . Bothacking | -11 -10 -10 -8 -8 -8 -8 -7 -7 -7 -7 -6 -6 -6 -6 -6 -6 -6 -5 -5 -5 -5 -5 -5 -4 -4 -4 -4 -3 -3 -3 -2 -2 -1 ------------ Run | Yrd Mat Sub Mat Gar Mat Sto Fac Low Low Dat Pro Fac Gar Fac Low Low Zio Pro Fac Ext Cet Arc Hub Fac Upp Upp Zhi Pro Res Qua Res Tes Acc Used RIF Installer 3 | . . . . 1 . . . . . . . . 2 . . . . . . . . . . . . . . . . . . . . Signal Jammer 1 | . . . . . . . . . . . . . 1 . . . . . . . . . . . . . . . . . . . . Watcher Feeds 1 | . . . . . . . . . . . . . 1 . . . . . . . . . . . . . . . . . . . . Robots Hacked 39 | . . . . . . 6 7 . . 1 1 . . . . . . . 19 . . . . . . . 3 . . . . 1 1 Non-combat 14 | . . . . . . 2 5 . . . . . . . . . . . 7 . . . . . . . . . . . . . . Combat 25 | . . . . . . 4 2 . . 1 1 . . . . . . . 12 . . . . . . . 3 . . . . 1 1 Robot Hacks Applied 42 | . . . . . . 7 7 . . 1 1 . . . . . . . 21 . . . . . . . 3 . . . . 1 1 parse_system 7 | . . . . . . . . . . 1 1 . . . . . . . 1 . . . . . . . 3 . . . . 1 . map_walls 1 | . . . . . . . 1 . . . . . . . . . . . . . . . . . . . . . . . . . . drop_inventory 3 | . . . . . . . 1 . . . . . . . . . . . 2 . . . . . . . . . . . . . . purge_threat 4 | . . . . . . 2 . . . . . . . . . . . . 2 . . . . . . . . . . . . . . locate_traps 1 | . . . . . . . . . . . . . . . . . . . 1 . . . . . . . . . . . . . . block_reporting 2 | . . . . . . . . . . . . . . . . . . . 2 . . . . . . . . . . . . . . map_route 1 | . . . . . . . 1 . . . . . . . . . . . . . . . . . . . . . . . . . . redirect_shields 1 | . . . . . . . 1 . . . . . . . . . . . . . . . . . . . . . . . . . . spike_heat 1 | . . . . . . 1 . . . . . . . . . . . . . . . . . . . . . . . . . . . overload_power 1 | . . . . . . . . . . . . . . . . . . . 1 . . . . . . . . . . . . . . amplify_resonance 1 | . . . . . . . . . . . . . . . . . . . 1 . . . . . . . . . . . . . . overwrite_iff 10 | . . . . . . 3 2 . . . . . . . . . . . 5 . . . . . . . . . . . . . . streamctrl_low 1 | . . . . . . 1 . . . . . . . . . . . . . . . . . . . . . . . . . . . streamctrl_high 3 | . . . . . . . . . . . . . . . . . . . 3 . . . . . . . . . . . . . . formatsys_low 1 | . . . . . . . . . . . . . . . . . . . 1 . . . . . . . . . . . . . . formatsys_high 4 | . . . . . . . 1 . . . . . . . . . . . 2 . . . . . . . . . . . . . 1 Relay Couplers Released 30 | . . . . 14 . . 3 . . . . . 5 4 . . . . 2 . . . . . . . . . . . . 2 . Machine Destruction 30 | . . . . 14 . . 3 . . . . . 5 4 . . . . 2 . . . . . . . . . . . . 2 . Attached 12 | . . . . . . 2 3 . . . . . . . . . . . 6 . . . . . . . . . . . . . 1 Fabnet Peak Effective % . | . . . . . . . . . . . . . . . . . . . . . . . . . . . . . . . . . . Robots Rewired 13 | . . . . . . . . . . . . . . . . . . . 1 11 . . . . . . . . . . . 1 . Allies Hacked . | . . . . . . . . . . . . . . . . . . . . . . . . . . . . . . . . . . Hacks Repelled . | . . . . . . . . . . . . . . . . . . . . . . . . . . . . . . . . . . Allies | -11 -10 -10 -8 -8 -8 -8 -7 -7 -7 -7 -6 -6 -6 -6 -6 -6 -6 -5 -5 -5 -5 -5 -5 -4 -4 -4 -4 -3 -3 -3 -2 -2 -1 -------- Run | Yrd Mat Sub Mat Gar Mat Sto Fac Low Low Dat Pro Fac Gar Fac Low Low Zio Pro Fac Ext Cet Arc Hub Fac Upp Upp Zhi Pro Res Qua Res Tes Acc Total Allies 81 | . . . 1 1 . 4 6 . . . 1 4 . . . . 5 . 21 21 5 . . 5 . . . . . 1 1 1 4 Largest Group 12 | . . . . 1 . 1 3 . . . 1 4 4 1 . . 5 5 4 12 7 6 5 3 . . . . . 1 1 1 5 Highest-Rated Group 641 | . . . . 31 . 16 109 . . . 96 186 186 98 . . 138 138 116 351 641 615 480 141 . . . . . 26 26 119 556 Highest-Rated Ally 159 | . . . . 31 . 16 109 . . . 96 99 99 98 . . 31 31 49 159 159 135 96 49 . . . . . 26 26 119 135 Total Orders 52 | . . . . . . 5 . . . . . . . . . . . . 10 5 3 2 4 7 . . . . 5 4 3 4 . STAY 9 | . . . . . . 2 . . . . . . . . . . . . 4 . 2 1 . . . . . . . . . . . ROAM 2 | . . . . . . 1 . . . . . . . . . . . . 1 . . . . . . . . . . . . . . FOLLOW 4 | . . . . . . . . . . . . . . . . . . . 1 . 1 1 . . . . . . . . 1 . . AID 3 | . . . . . . 2 . . . . . . . . . . . . 1 . . . . . . . . . . . . . . EXPLORE 2 | . . . . . . . . . . . . . . . . . . . . . . . . . . . . . 2 . . . . RETURN 32 | . . . . . . . . . . . . . . . . . . . 3 5 . . 4 7 . . . . 3 4 2 4 . Ally Attacks 510 | . . . . 15 . 12 19 . . . 9 27 60 13 . . . 42 60 119 28 18 42 23 . . . . . . . . 23 Total Damage 15470 | . . . . 326 . 105 237 . . . 330 1459 1786 832 . . . 619 1473 2861 946 604 1728 867 . . . . . . . . 1297 Kills 118 | . . . . 4 . 1 4 . . . . 15 16 7 . . . 9 13 21 5 2 10 4 . . . . . . . . 7 Allies Corrupted 2 | . . . . . . . . . . . . . . 1 . . . . 1 . . . . . . . . . . . . . . Allies Melted . | . . . . . . . . . . . . . . . . . . . . . . . . . . . . . . . . . . Intel | -11 -10 -10 -8 -8 -8 -8 -7 -7 -7 -7 -6 -6 -6 -6 -6 -6 -6 -5 -5 -5 -5 -5 -5 -4 -4 -4 -4 -3 -3 -3 -2 -2 -1 ------- Run | Yrd Mat Sub Mat Gar Mat Sto Fac Low Low Dat Pro Fac Gar Fac Low Low Zio Pro Fac Ext Cet Arc Hub Fac Upp Upp Zhi Pro Res Qua Res Tes Acc Robot Analysis Total 11 | . 3 . 3 . . . . . . . . 1 . . . . . . . . . . . . . . 4 . . . . . . Derelict Logs Recovered 11 | . . 1 . . . . . . 1 . 2 . . . . 1 . 3 . . . . . . 2 1 . . . . . . . Drone Launches 34 | . . . . . . . . . . . . . . . . . . . 3 5 . . 4 7 . . . . 5 4 2 4 . Drone Recoveries 32 | . . . . . . . . . . . . . . . . . . . 3 5 . . 4 7 . . . . 3 4 2 4 . Exploration | -11 -10 -10 -8 -8 -8 -8 -7 -7 -7 -7 -6 -6 -6 -6 -6 -6 -6 -5 -5 -5 -5 -5 -5 -4 -4 -4 -4 -3 -3 -3 -2 -2 -1 ------------- Run | Yrd Mat Sub Mat Gar Mat Sto Fac Low Low Dat Pro Fac Gar Fac Low Low Zio Pro Fac Ext Cet Arc Hub Fac Upp Upp Zhi Pro Res Qua Res Tes Acc Turns Passed 46838 | 13 997 2087 1706 2374 911 3706 1994 3541 888 137 1470 1464 865 942 2554 1734 771 1523 3748 1553 334 849 449 3276 971 868 469 607 881 770 525 1406 455 Spaces Moved 21422 | 6 459 1205 813 1039 295 1213 921 1962 528 89 858 706 364 346 1039 693 262 617 1691 686 151 392 202 1521 547 504 270 356 430 335 234 519 169 Core 38 | . . . . . . . 38 . . . . . . . . . . . . . . . . . . . . . . . . . . Treads 16342 | 6 459 1205 813 1029 295 1213 518 . . . . . 208 346 1039 693 262 491 1449 686 151 392 202 1521 547 504 270 356 430 335 234 519 169 Legs 580 | . . . . 10 . . 365 205 . . . . . . . . . . . . . . . . . . . . . . . . . Wheels 4462 | . . . . . . . . 1757 528 89 858 706 156 . . . . 126 242 . . . . . . . . . . . . . . Hover . | . . . . . . . . . . . . . . . . . . . . . . . . . . . . . . . . . . Flight . | . . . . . . . . . . . . . . . . . . . . . . . . . . . . . . . . . . Fastest Speed 90 | 160 160 160 160 160 163 166 90 115 160 145 145 160 175 240 242 242 244 160 160 166 160 160 160 160 166 166 166 166 166 166 166 155 155 Average Speed 174 | 160 160 160 160 186 166 168 167 144 160 150 159 166 212 240 242 242 244 229 164 166 162 160 160 163 166 166 166 166 166 166 166 160 155 Slowest Speed 320 | 160 160 160 240 320 170 170 265 190 160 160 160 175 240 242 242 244 244 244 244 166 166 160 160 166 166 166 166 166 166 166 166 166 156 Overloaded Moves . | . . . . . . . . . . . . . . . . . . . . . . . . . . . . . . . . . . Propulsion Burnouts . | . . . . . . . . . . . . . . . . . . . . . . . . . . . . . . . . . . Robots Hopped . | . . . . . . . . . . . . . . . . . . . . . . . . . . . . . . . . . . Cave-ins Triggered 1 | . . 1 . . . . . . . . . . . . . . . . . . . . . . . . . . . . . . . Exploration Rate (%) 54 | 2 56 54 65 81 30 94 25 89 53 74 83 18 54 11 93 92 14 83 65 85 63 79 52 56 65 73 60 49 21 41 14 62 9 Regions Visited 33 Branch Regions 20 Pre-discovered Areas 8 | . 1 . . . . . . . . 1 . . . . . . . 2 . . . . . . . 1 3 . . . . . . Known Exits Taken 23 | . . . 1 . . 1 1 . . . . 1 . 1 1 1 1 1 1 1 1 1 1 1 1 1 1 1 1 1 1 1 . Unknown Exits Taken 8 | 1 1 1 . . 1 . . 1 1 1 1 . . . . . . . . . . . . . . . . . . . . . . Scrap Searched 28 | . . 12 . . . . . 2 3 . 1 . . . 2 3 . 1 . . . . . . 1 3 . . . . . . . Spaces Dug 367 | . . 3 1 14 . . 11 74 8 . 2 16 1 3 10 1 . 16 28 6 . . . 15 27 52 . 33 11 5 18 10 2 Terrain Destroyed 1111 | . . 3 15 14 15 18 71 158 11 . 75 23 3 4 10 2 . 60 65 23 3 7 37 197 48 74 . 51 37 19 26 27 15 Melee 19 | . . 3 . 14 . . 2 . . . . . . . . . . . . . . . . . . . . . . . . . . Projectile 467 | . . . 15 . 15 18 15 41 11 . 8 23 3 4 10 2 . 24 46 23 3 7 4 75 7 2 . 6 21 19 26 27 12 AOE 625 | . . . . . . . 54 117 . . 67 . . . . . . 36 19 . . . 33 122 41 72 . 45 16 . . . 3 Terrain Rammed . | . . . . . . . . . . . . . . . . . . . . . . . . . . . . . . . . . . Walls Destroyed . | . . . . . . . . . . . . . . . . . . . . . . . . . . . . . . . . . . Machines Disabled . | . . . . . . . . . . . . . . . . . . . . . . . . . . . . . . . . . . Actions | -11 -10 -10 -8 -8 -8 -8 -7 -7 -7 -7 -6 -6 -6 -6 -6 -6 -6 -5 -5 -5 -5 -5 -5 -4 -4 -4 -4 -3 -3 -3 -2 -2 -1 --------- Run | Yrd Mat Sub Mat Gar Mat Sto Fac Low Low Dat Pro Fac Gar Fac Low Low Zio Pro Fac Ext Cet Arc Hub Fac Upp Upp Zhi Pro Res Qua Res Tes Acc Total 28688 | 8 672 1302 1042 1258 648 2717 1243 2591 551 91 927 940 443 418 1062 729 394 689 2466 989 209 561 296 2075 598 529 293 364 545 477 319 973 269 Wait 4701 | . 151 17 77 38 299 1344 131 541 2 . 41 119 32 19 1 9 126 39 469 165 5 129 60 330 28 8 . 2 68 78 43 298 32 Move 21388 | 5 458 1204 812 1038 294 1212 920 1961 527 88 857 705 363 345 1038 692 261 616 1690 685 150 391 201 1520 546 503 269 355 429 334 233 518 168 Hop . | . . . . . . . . . . . . . . . . . . . . . . . . . . . . . . . . . . Pick Up 275 | . 18 8 20 12 6 11 21 16 4 . 6 20 7 6 2 4 1 3 26 3 4 2 3 23 4 2 6 . 5 3 5 16 8 Fast Attach 121 | . . 4 7 7 2 13 23 3 1 . . 2 1 2 2 4 1 1 6 2 5 3 . 16 1 3 3 . 2 2 . 5 . Attach 82 | . . . 7 6 . 3 8 2 3 . 1 7 1 . . 2 . . 8 1 3 3 3 7 2 . 1 . 3 . 2 5 4 Detach 48 | . . . 1 2 . 3 14 3 2 . 1 . . . 1 . 1 1 . 1 5 2 . 3 3 . . . . . . 5 . Swap 345 | 3 4 15 7 20 2 10 19 7 2 2 5 4 1 10 3 4 3 7 69 12 3 . 10 29 6 4 2 3 9 18 12 30 10 Drop 296 | . 10 18 20 11 9 17 19 19 . . 2 15 6 9 3 5 1 5 26 4 11 4 3 28 2 5 8 . 4 5 3 22 2 Fire 1105 | . 25 22 88 86 35 71 64 38 10 . 13 36 12 21 12 9 . 16 126 63 23 27 13 116 6 4 1 4 24 25 21 51 43 Melee 98 | . . 12 . 31 . 18 17 . . 1 1 . . 2 . . . . 3 10 . . . . . . 3 . . . . . . Ram . | . . . . . . . . . . . . . . . . . . . . . . . . . . . . . . . . . . Kick . | . . . . . . . . . . . . . . . . . . . . . . . . . . . . . . . . . . Crush 59 | . 6 . 3 7 1 13 1 . . . . . . 2 . . . . 9 6 . . . 3 . . . . 1 . . 6 1 Escape Stasis 26 | . . . . . . 2 . . . . . . 20 2 . . . . . 1 . . . . . . . . . . . . 1 Rewire 45 | . . . . . . . 1 1 . . . . . . . . . . 2 36 . . . . . . . . . . . 5 . Trap 72 | . . 2 . . . . 5 . . . . 32 . . . . . 1 32 . . . . . . . . . . . . . . Miscellaneous 27 | . . . . . . . . . . . . . . . . . . . . . . . 3 . . . . . . 12 . 12 . Route ------- -11/Scrapyard -10/Materials (discovered 4 exits: [*Mat] / [*Min x2] / [*Sub]) -10/Subcaves -8/Materials (discovered 5 exits: *Fac x2 / *Sto x2 / Gar) -8/Garrison (discovered 3 exits: *Mat x3) -8/Materials -8/Storage -7/Factory (discovered 2 exits: *Low x2) -7/Lower Caves -7/Lower Caves -7/Data Miner -6/Proximity Caves -6/Factory -6/Garrison (discovered 2 exits: *Fac x2) -6/Factory -6/Lower Caves -6/Lower Caves (discovered 2 exits: *Fac / *Zio) -6/Zion -5/Proximity Caves -5/Factory (discovered 8 exits: *Fac x4 / *Upp x2 / *Ext x2) -5/Extension (discovered 3 exits: *Fac x2 / *Cet) -5/Cetus (discovered 2 exits: *Fac / *Arc) -5/Archives (discovered 3 exits: *Fac / *Hub x2) -5/Hub_04(d) (discovered 2 exits: *Fac x2) -4/Factory (discovered 4 exits: *Res x3 / *Upp) -4/Upper Caves -4/Upper Caves (discovered 2 exits: *Res / *Zhi) -4/Zhirov -3/Proximity Caves -3/Research (discovered 3 exits: *Res / Arm / *Qua) -3/Quarantine -2/Research (discovered 2 exits: *Tes x2) -2/Testing -1/Access (discovered 2 exits: *Sur / Com) To Epsilon Eridani History --------- Turn | Location | Event 6 | -11/Scrapyard | Discovered new exit (range 3) 14 | -11/Scrapyard | Entered Materials 301 | -10/Materials | Build established: Mutant 375 | -10/Materials | Discovered new exit (range 16) 538 | -10/Materials | Discovered new exit (range 7) 545 | -10/Materials | Discovered new exit (range 13) 1005 | -10/Materials | Discovered new exit (range 5) 1011 | -10/Materials | Entered Subcaves 1110 | -10/Subcaves | A swath of the cavern ceiling suddenly collapsed 1175 | -10/Subcaves | Crushed by falling debris 1175 | -10/Subcaves | Core integrity fell below 50% 1305 | -10/Subcaves | Shifting Twisted Machinery released Scrap Shield 1310 | -10/Subcaves | Shifting Twisted Machinery released Shrapnel Trap 1318 | -10/Subcaves | Discovered new exit (range 3) 2296 | -10/Subcaves | A swath of the cavern ceiling suddenly collapsed 2331 | -10/Subcaves | Core integrity fell below 20% 2635 | -10/Subcaves | Build established: Derelict-Mutant 3098 | -10/Subcaves | Entered Materials 3098 | -8/Materials | Evolved 4 slots: Propulsion x1, Utility x3 3105 | -8/Materials | Discovered new exit (range 13) 3323 | -8/Materials | Discovered new exit (range 16) 3353 | -8/Materials | Build established: Mutant 4124 | -8/Materials | Discovered new exit (range 16) 4357 | -8/Materials | Central database locked down 4402 | -8/Materials | Repaired Lgt. Treads 4598 | -8/Materials | Discovered new exit (range 16) 4796 | -8/Materials | Identified exit to Garrison 4801 | -8/Materials | Garrison activated, responded to threat 4804 | -8/Materials | Entered Garrison 4804 | -8/Garrison | Accompanied by 1 ally 4806 | -8/Garrison | Triggered checkpoint 4922 | -8/Garrison | Triggered checkpoint 4978 | -8/Garrison | Garrison Relay disabled 5183 | -8/Garrison | Spotted B-75 Beast 5183 | -8/Garrison | Spotted B-75 Beast 5524 | -8/Garrison | Discovered new exit (range 11) 5577 | -8/Garrison | Build established: Scavenger-Mutant 5648 | -8/Garrison | Rescued a captive Derelict 5760 | -8/Garrison | Triggered checkpoint 5982 | -8/Garrison | Triggered checkpoint 6042 | -8/Garrison | Garrison Relay disabled 6090 | -8/Garrison | Discovered new exit (range 8) 6203 | -8/Garrison | Core integrity fell below 50% 6281 | -8/Garrison | Lost 8 parts (3n3u2w) 6532 | -8/Garrison | Triggered checkpoint 6629 | -8/Garrison | Discovered new exit (range 13) 6631 | -8/Garrison | Build established: Hacker-Mutant 6916 | -8/Garrison | Triggered checkpoint 6982 | -8/Garrison | Installed Relay Interface Framework 7008 | -8/Garrison | Garrison Relay disabled 7178 | -8/Garrison | Entered Materials 7266 | -8/Materials | Garrison activated, responded to threat 7947 | -8/Materials | Discovered new exit (range 9) 8089 | -8/Materials | Entered Storage 8713 | -8/Storage | Build established: Mutant 9323 | -8/Storage | Repaired Lyr. Heavy Armor Plating 9823 | -8/Storage | Discovered new exit (range 5) 10086 | -8/Storage | Repaired Arm. Medium Treads 10131 | -8/Storage | Repaired Adv. Assault Cannon 11791 | -8/Storage | Identified exit to Factory 11795 | -8/Storage | Entered Factory 11795 | -7/Factory | Evolved 2 slots: Propulsion x1, Utility x1 12496 | -7/Factory | Identified exit to Lower Caves 12958 | -7/Factory | Cargo convoy interrupted 12995 | -7/Factory | Core integrity fell below 50% 13031 | -7/Factory | Lost 8 parts (5n2u1w) 13049 | -7/Factory | Lost 3 allies 13111 | -7/Factory | Found Prototype Launcher 13111 | -7/Factory | Identified Scatter Rocket Array 13124 | -7/Factory | Found Prototype Processor 13124 | -7/Factory | Identified Exp. Targeting Computer 13147 | -7/Factory | Found Exp. Targeting Computer 13173 | -7/Factory | Found Scatter Rocket Array 13195 | -7/Factory | Found Exp. Targeting Computer 13685 | -7/Factory | Build established: Scavenger-Mutant 13696 | -7/Factory | Core integrity fell below 20% 13789 | -7/Factory | Entered Lower Caves 13790 | -7/Lower Caves | Encountered a Warlord checkpoint 14489 | -7/Lower Caves | Build established: Mutant 14934 | -7/Lower Caves | Discovered new exit (range 7) 15041 | -7/Lower Caves | Murdered Warlord Statue 15061 | -7/Lower Caves | Found Prototype Device 15061 | -7/Lower Caves | Identified Heart of Steel 17330 | -7/Lower Caves | Entered another Lower Caves area 17966 | -7/Lower Caves | Discovered new exit (range 11) 18046 | -7/Lower Caves | Learned 4 Factory zone layouts 18218 | -7/Lower Caves | Entered Data Miner 18218 | -7/Data Miner | Discovered new exit (range 6) 18249 | -7/Data Miner | Met Data Miner 18297 | -7/Data Miner | Learned location of Section 7 (-3) 18297 | -7/Data Miner | Acquired the access code to Warlord's prototype stash 18318 | -7/Data Miner | Received God Mode back door access code from Data Miner 18355 | -7/Data Miner | Entered Proximity Caves 18403 | -6/Proximity Caves | Learned Factory interactive machine intel 18465 | -6/Proximity Caves | Attacked by a faux Warlord 18466 | -6/Proximity Caves | Escorted by Enhanced Grunt 18508 | -6/Proximity Caves | Spotter reported a threat 18669 | -6/Proximity Caves | Learned Factory stockpile data 19057 | -6/Proximity Caves | Discovered new exit (range 5) 19825 | -6/Proximity Caves | Entered Factory 19825 | -6/Factory | Accompanied by 1 ally 19825 | -6/Factory | Evolved 2 slots: Power x1, Utility x1 19828 | -6/Factory | Loaded intel: 52 interactive machine locations 20195 | -6/Factory | Repaired Transmission Jammer 20404 | -6/Factory | Heart of Steel transformed into Warbot 21123 | -6/Factory | Fabricated Arm. Medium Treads? 21237 | -6/Factory | Identified exit to Garrison 21289 | -6/Factory | Entered Garrison 21289 | -6/Garrison | Accompanied by 4 allies (Warbot) 21314 | -6/Garrison | Expanded RIF knowledge: Watcher Feeds 21375 | -6/Garrison | Triggered checkpoint 21411 | -6/Garrison | Garrison Relay disabled 21500 | -6/Garrison | Triggered checkpoint 21549 | -6/Garrison | Triggered checkpoint 21589 | -6/Garrison | Triggered checkpoint 21747 | -6/Garrison | Discovered new exit (range 14) 21907 | -6/Garrison | Build established: Scavenger-Mutant 21925 | -6/Garrison | Expanded RIF knowledge: Signal Jamming 21951 | -6/Garrison | Triggered checkpoint 22034 | -6/Garrison | Discovered new exit (range 8) 22154 | -6/Garrison | Entered Factory 22154 | -6/Factory | Accompanied by 1 ally (Warbot) 22585 | -6/Factory | Build established: Bothacker-Mutant 22638 | -6/Factory | Discovered new exit (range 9) 22655 | -6/Factory | Identified exit to Lower Caves 23096 | -6/Factory | Entered Lower Caves 23123 | -6/Lower Caves | Encountered a Warlord checkpoint 23703 | -6/Lower Caves | Learned location of 1 exit from Research 23703 | -6/Lower Caves | Learned Armory trap positions 23703 | -6/Lower Caves | Learned Extension security intel 24606 | -6/Lower Caves | Discovered new exit (range 5) 25402 | -6/Lower Caves | Destroyed AJ-728(g) 25646 | -6/Lower Caves | Identified exit to Lower Caves 25650 | -6/Lower Caves | Entered another Lower Caves area 25766 | -6/Lower Caves | Found Alien Artifact 25793 | -6/Lower Caves | Discovered new exit (range 13) 25798 | -6/Lower Caves | Identified Dimensional Node Initializer 25798 | -6/Lower Caves | Initialized slip node 25854 | -6/Lower Caves | Learned Factory garrison access intel 25862 | -6/Lower Caves | Identified exit to Factory 25978 | -6/Lower Caves | Attracted the attention of an 0b10 checkpoint 26177 | -6/Lower Caves | Encountered a Warlord checkpoint 26345 | -6/Lower Caves | Discovered new exit (range 11) 26426 | -6/Lower Caves | Identified exit to Zion 26812 | -6/Lower Caves | Found Alien Artifact 26812 | -6/Lower Caves | Identified Core Expander 26812 | -6/Lower Caves | Installed Core Expander, added new Propulsion slot 27384 | -6/Lower Caves | Entered Zion 27531 | -6/Zion | Given the Hacking Drone Bay 27541 | -6/Zion | Discovered new exit (range 9) 27621 | -6/Zion | System corruption cleaned by Quarantine Array 27876 | -6/Zion | Found Prototype Device 27876 | -6/Zion | Identified Hacking Drone Bay 28088 | -6/Zion | Gained Derelict followers 28153 | -6/Zion | Identified exit to Proximity Caves 28155 | -6/Zion | Entered Proximity Caves 28155 | -5/Proximity Caves | Accompanied by 5 allies 28256 | -5/Proximity Caves | Spotter reported a threat 28401 | -5/Proximity Caves | Spotter reported a threat 28863 | -5/Proximity Caves | Spotted B-75 Beast 29033 | -5/Proximity Caves | Destroyed B-75 Beast 29223 | -5/Proximity Caves | Learned location of Armory (-3) 29259 | -5/Proximity Caves | Discovered exit to Factory (range 15) 29678 | -5/Proximity Caves | Entered Factory 29678 | -5/Factory | Evolved 2 slots: Propulsion x1, Utility x1 29679 | -5/Factory | Loaded intel: 4 garrison access locations 29978 | -5/Factory | Search patrols dispatched 30501 | -5/Factory | Fabricated Adv. Component Analysis Suite (x1) 30828 | -5/Factory | Identified exit to Factory 31723 | -5/Factory | Discovered new exit (range 7) 31733 | -5/Factory | Identified exit to Upper Caves 31983 | -5/Factory | Spotted B-75 Beast 32006 | -5/Factory | Destroyed B-75 Beast 32522 | -5/Factory | Identified exit to Extension 32755 | -5/Factory | Lost 4 allies 33014 | -5/Factory | Build established: Mutant 33169 | -5/Factory | Repaired Broken Cld. Phase Cannon 33426 | -5/Factory | Entered Extension 33426 | -5/Extension | Accompanied by 3 allies 33480 | -5/Extension | Identified exit to Cetus 33568 | -5/Extension | Lost 3 allies 34023 | -5/Extension | Rescued a captive Derelict 34025 | -5/Extension | Rescued a captive Derelict 34026 | -5/Extension | Search patrols dispatched 34204 | -5/Extension | Build established: Commander-Mutant 34213 | -5/Extension | Rescued a captive Derelict 34214 | -5/Extension | Rescued a captive Derelict 34273 | -5/Extension | Disrupted transfer network 34326 | -5/Extension | Search patrols dispatched 34400 | -5/Extension | Spotted B-75 Beast 34409 | -5/Extension | Allies destroyed B-75 Beast 34422 | -5/Extension | Spotted B-75 Beast 34441 | -5/Extension | Destroyed B-75 Beast 34480 | -5/Extension | Lost 7 allies 34492 | -5/Extension | Rescued a captive Derelict 34540 | -5/Extension | Lost 4 allies 34561 | -5/Extension | Rescued a captive Derelict 34624 | -5/Extension | Rescued a captive Derelict 34624 | -5/Extension | Rescued a captive Derelict 34774 | -5/Extension | Rescued A7 34803 | -5/Extension | Build established: Mutant 34926 | -5/Extension | First assault squad dispatched 34979 | -5/Extension | Entered Cetus 34979 | -5/Cetus | Accompanied by 3 allies (A7) 34984 | -5/Cetus | Acquired a Cetus Manufacturing Module code from A7 35015 | -5/Cetus | Spotted Cetus Guard 35015 | -5/Cetus | Spotted Cetus Guard 35015 | -5/Cetus | Spotted Cetus Guard 35015 | -5/Cetus | Spotted Cetus Guard 35029 | -5/Cetus | Allies destroyed Cetus Guard 35029 | -5/Cetus | Destroyed Cetus Guard 35037 | -5/Cetus | Destroyed Cetus Guard 35038 | -5/Cetus | Allies destroyed Cetus Guard 35129 | -5/Cetus | Started Cetus Manufacturing Module 35142 | -5/Cetus | Escorted A7 to Cetus Mainframe 35154 | -5/Cetus | Manufactured an Enhanced Grunt 35161 | -5/Cetus | Discovered new exit (range 15) 35179 | -5/Cetus | Manufactured an Enhanced Grunt 35186 | -5/Cetus | Discovered exit to Factory (range 27) 35203 | -5/Cetus | Spotted Cetus Guard 35203 | -5/Cetus | Spotted Cetus Guard 35203 | -5/Cetus | Spotted Cetus Guard 35203 | -5/Cetus | Spotted Cetus Guard 35204 | -5/Cetus | Manufactured an Enhanced Grunt 35213 | -5/Cetus | Allies destroyed Cetus Guard 35219 | -5/Cetus | Allies destroyed Cetus Guard 35226 | -5/Cetus | Allies destroyed Cetus Guard 35229 | -5/Cetus | Manufactured an Enhanced Grunt 35229 | -5/Cetus | Destroyed Cetus Guard 35245 | -5/Cetus | Met Revision 17 35254 | -5/Cetus | Manufactured an Enhanced Grunt 35312 | -5/Cetus | Identified exit to Archives 35313 | -5/Cetus | Entered Archives 35313 | -5/Archives | Accompanied by 6 allies (A7) 35318 | -5/Archives | Received a hacking code to weaken MAIN.C 35364 | -5/Archives | Build established: Scavenger-Mutant 35490 | -5/Archives | Discovered exit to Factory (range 16) 35695 | -5/Archives | Discovered new exit (range 16) 35949 | -5/Archives | Identified exit to Hub_04(d) 36046 | -5/Archives | Discovered exit to Hub_04(d) (range 15) 36162 | -5/Archives | Entered Hub_04(d) 36162 | -5/Hub_04(d) | Accompanied by 5 allies 36200 | -5/Hub_04(d) | Discovered exit to Factory (range 15) 36432 | -5/Hub_04(d) | Discovered exit to Factory (range 14) 36476 | -5/Hub_04(d) | Disrupted transfer network 36492 | -5/Hub_04(d) | Lost 4 allies 36566 | -5/Hub_04(d) | Network Hub disabled 36600 | -5/Hub_04(d) | Spotted Lightning 36611 | -5/Hub_04(d) | Entered Factory 36611 | -4/Factory | Evolved 2 slots: Utility x1, Weapon x1 37063 | -4/Factory | Spotted B-86 Titan 37077 | -4/Factory | Destroyed B-86 Titan 37115 | -4/Factory | Build established: Scavenger-Gunner 37189 | -4/Factory | Found Prototype Device 37191 | -4/Factory | Identified Exp. Actuator Array 37497 | -4/Factory | Discovered new exit (range 7) 37737 | -4/Factory | Build established: Scavenger-Tank 37967 | -4/Factory | Identified exit to Research 38025 | -4/Factory | Found Prototype Processor 38025 | -4/Factory | Identified Exp. Signal Interpreter 38271 | -4/Factory | Repaired Centrium Heavy Treads 38293 | -4/Factory | Build established: Scavenger-Gunner 38380 | -4/Factory | Repaired Centrium Heavy Treads 38483 | -4/Factory | Repaired Cld. Phase Cannon? 38589 | -4/Factory | Repaired Cld. Plasma Cannon? 38675 | -4/Factory | Build established: Scavenger-Mutant 38722 | -4/Factory | Repaired Broken Cld. Phase Cannon? 38829 | -4/Factory | Discovered exit to Research (range 5) 38912 | -4/Factory | Lost 3 allies 39021 | -4/Factory | Discovered new exit (range 23) 39028 | -4/Factory | Build established: Scavenger-Gunner 39405 | -4/Factory | Destroyed 12 combat bots 39569 | -4/Factory | Discovered exit to Research (range 2) 39861 | -4/Factory | First assault squad dispatched 39880 | -4/Factory | Identified exit to Upper Caves 39887 | -4/Factory | Entered Upper Caves 39912 | -4/Upper Caves | Encountered a Warlord checkpoint 40030 | -4/Upper Caves | Learned Research emergency access door positions 40168 | -4/Upper Caves | Learned location of 1 exit from Research 40171 | -4/Upper Caves | Ambushed by wild Derelicts 40219 | -4/Upper Caves | Build established: Scavenger-Tank 40765 | -4/Upper Caves | Discovered new exit (range 5) 40775 | -4/Upper Caves | Identified exit to Upper Caves 40858 | -4/Upper Caves | Entered another Upper Caves area 40870 | -4/Upper Caves | Discovered exit to Research (range 15) 41346 | -4/Upper Caves | Learned location of Quarantine (-3) 41463 | -4/Upper Caves | Discovered new exit (range 5) 41480 | -4/Upper Caves | Identified exit to Zhirov 41726 | -4/Upper Caves | Entered Zhirov 41726 | -4/Zhirov | Discovered new exit (range 3) 41756 | -4/Zhirov | Met Zhirov 41793 | -4/Zhirov | Learned location of Testing (-2) 41793 | -4/Zhirov | Learned location of Command (-1) 41803 | -4/Zhirov | Zhirov requested help retrieving the SGEMP Prototype 41859 | -4/Zhirov | Found Alien Artifact 41859 | -4/Zhirov | Identified Integrated Dissipator 41859 | -4/Zhirov | Installed Integrated Dissipator, increased core heat dissipation (+20) 41966 | -4/Zhirov | Found Alien Artifact 42035 | -4/Zhirov | Identified exit to Proximity Caves 42195 | -4/Zhirov | Entered Proximity Caves 42637 | -3/Proximity Caves | Discovered exit to Research (range 5) 42802 | -3/Proximity Caves | Entered Research 42802 | -3/Research | Evolved 2 slots: Power x1, Utility x1 42803 | -3/Research | Identified exit to Armory 42804 | -3/Research | Identified exit to Quarantine 42804 | -3/Research | Identified exit to Research 43002 | -3/Research | Revision forces began assault on 0b10 43088 | -3/Research | Met up with Revision 17++ 43405 | -3/Research | Repaired Centrium Heavy Treads? 43502 | -3/Research | Research terminal network offline 43683 | -3/Research | Entered Quarantine 43820 | -3/Quarantine | Found Alien Energy Cannon 43884 | -3/Quarantine | Found Alien Artifact 43885 | -3/Quarantine | Identified Phase Redirector 43977 | -3/Quarantine | P-80 Master assimilated allied Administrator 8a 44223 | -3/Quarantine | System corruption reached 10% 44294 | -3/Quarantine | Cryocooling Duct disabled 44309 | -3/Quarantine | Ambient heat levels rising (+20) 44309 | -3/Quarantine | Non-combat units ordered to evacuate 44324 | -3/Quarantine | Found Alien Artifact 44453 | -3/Quarantine | Entered Research 44453 | -2/Research | Evolved 2 slots: Utility x2 44565 | -2/Research | Identified exit to Testing 44931 | -2/Research | Found Prototype Hackware 44977 | -2/Research | Identified Exp. System Shield 44978 | -2/Research | Entered Testing 44978 | -2/Testing | Accompanied by 1 ally 45078 | -2/Testing | Found Prototype Energy Cannon 45078 | -2/Testing | Identified Hpw. Disruptor Cannon 45310 | -2/Testing | Found Prototype Energy Gun 45488 | -2/Testing | Identified exit to Access 45541 | -2/Testing | Found Prototype Device 45550 | -2/Testing | Protovariant out of control (PY-97KS1XWLVM) 45550 | -2/Testing | Unleashed a protovariant (PY-97KS1XWLVM) 45556 | -2/Testing | Identified Warp Gun 45570 | -2/Testing | Identified Exp. Thermal Shield 45660 | -2/Testing | Found Prototype Launcher 45696 | -2/Testing | Found Prototype Device 45701 | -2/Testing | Identified Exp. ECM Suite 45702 | -2/Testing | Identified Point Singularity Launcher 45729 | -2/Testing | Found Prototype Device 45757 | -2/Testing | Identified Adv. EM Disruption Field 45766 | -2/Testing | Spotted Striker 45767 | -2/Testing | Spotted Striker 45788 | -2/Testing | Destroyed Striker 45834 | -2/Testing | Destroyed Striker 45846 | -2/Testing | Spotted Alpha 7 45882 | -2/Testing | Destroyed Alpha 7 45901 | -2/Testing | Found Prototype Processor 45901 | -2/Testing | Identified Exp. Target Analyzer 45920 | -2/Testing | Stole the SGEMP Prototype 46245 | -2/Testing | Found Prototype Launcher 46311 | -2/Testing | Spotted PL-3AZN0H3YGW 46321 | -2/Testing | Rewired PL-3AZN0H3YGW 46384 | -2/Testing | Entered Access 46384 | -1/Access | Accompanied by 1 ally 46384 | -1/Access | Evolved 2 slots: Propulsion x2 46386 | -1/Access | Loaded intel: 107 machine locations 46386 | -1/Access | Loaded intel: 55 trap records 46386 | -1/Access | Identified exit to Surface 46386 | -1/Access | Discovered exit to Surface (range 111) 46386 | -1/Access | Identified exit to Command 46386 | -1/Access | Discovered exit to Command (range 90) 46386 | -1/Access | Delivered the SGEMP Prototype to Zhirov 46386 | -1/Access | Zhirov transferred Access data 46502 | -1/Access | Zhirov warped through subspace 46509 | -1/Access | Identified Containment Facilitator 46770 | -1/Access | Energy Cycler disabled 46839 | *** | Escaped! Last Messages --------------- 46790_ A-15 Conveyor calls for reinforcements. 46790_ ALERT: Hostile activity reported, dispatching reinforcements to area. 46792_ R-10 Processor collects Hvy. Laser. 46793_ K-01 Serf collects debris. 46795_ A-15 Conveyor destroyed. 46796_ K-01 Serf collects debris. 46797_ U-05 Engineer builds a Wall. 46799_ R-10 Processor collects KE Penetrator. 46799_ K-01 Serf collects debris. 46800_ Slammed into R-10 Processor. 46802_ U-05 Engineer builds a Door. 46802_ K-01 Serf collects debris. 46803_ U-05 Engineer builds a Wall. 46805_ K-01 Serf collects debris. 46808_ U-05 Engineer builds a Wall. 46810_ K-01 Serf collects debris. 46813_ U-05 Engineer builds a Wall. 46827_ System corrupted: Energy discharge (-356). 46828_ The Access Shell folds into the floor. Map ----- +----------------------------------------------------+ | ################### + #^ | | ################### # + | | ######### # # ####### # | | ######### ########+######### # | | ######### ### ##### ### | | ### ### ##### ########## | | ### ### ##### ########## | | ### ### ##### ########## | | ### ### ##### ########## | | ### #################### #######="# | | ###+###+#+###################### ######=[]= | | ###+##### %=[%=![[!% | | R % %%[[|%!=[% | | ###+######## ####### ""############+##[[[! | | # ##### ####### ""#### ##"# | | + ##### ####### ""#### + | | # ##### ####### T#### # | | # ##### ####### ""#### # | | # ##### ####### ""#### " # | | # ##### ####### ""#### """ # | | ########### ##### ### """ # | | ########### ###### #### " # | | ########### ###### #### # | | ########### ###### #### #### | | ############ ####### #### #### | | # ####### @" #### """ """ #### | | # ####### "" #### """T""" #### | | + ####### ################### | | # ####### ################### | | # ####### ################### | | ############ #######""""""""""################### | | ############+########""""""""""################### | | ######### ###""""""""""################### | | ######### ###""""""""""################### | | ######### """"" ### ################### | | ######### """"" ### ################### | | ######### "" F" ### ################### | | ######### ### ################### | | ######### ### ################### | | ######### ### ################### | | ##################### ################### | | ## ############## ###################### | | ## # # # #### | | ## # # # #### | | ## " # """"" + + #### | | # """ # """"" # # #### | | + """ # """"" # # #### | | # " # """"" # # #### | | # + """"" # # #### | | # # """"" # ############+######### | +----------------------------------------------------+ Best States ------------- Heat Dissipation 148 Energy Generation 61 Energy Capacity 1110 Matter Stores 300 Matter Capacity 300 Sight Range 21 Robot Scan Range 16 Terrain Scan Density 10 Jamming Range 16 Corruption Containment 12 Armor Coverage 1200 Resistance: KI 20 Resistance: TH 10 Resistance: EM 50 Propulsion Shielding 66 Utility Shielding 90 Weapon Cycling 20 Phase Shifting 10 Evasion (%) 55 Targeting Accuracy 24 Core Analysis 6 Recoil Reduction 8 Offensive Hacking 24 Relay Coupler Types 2 Relay Coupler Value 46 Trap Extractor Capacity 8 Item Schematics ----------------- Combat Drone Bay | -7/Data Miner | Free Lgt. Regenerative Plating | -7/Data Miner | Free Cld. Aerolev Unit | -7/Data Miner | Free Gravity Neutralizer | -7/Data Miner | Free Ion Burst Cannon | -7/Data Miner | Free Arm. Medium Treads | -7/Data Miner | Free Imp. Recalibrator | -7/Data Miner | Free Hvy. Shock Bomb Launcher | -7/Data Miner | Free Imp. Coolant Injector | -7/Data Miner | Free Graphene Brace | -7/Data Miner | Free Imp. Heavy Armor Plating | -5/Factory | Scanalyzed Imp. Weapon Cycler | -5/Factory | Scanalyzed Assault Drone Bay | -4/Zhirov | Free Exp. Heat Sink | -4/Zhirov | Free Exp. Optical Array | -4/Zhirov | Free Imp. Arc Thrower | -4/Zhirov | Free Tiamat Missile Launcher | -2/Testing | Archive Exp. Thermal Shield | -2/Testing | Archive Exp. ECM Suite | -2/Testing | Archive Robot Schematics ------------------ X-67 Chaingunner | -7/Data Miner | Free M-14 Sweeper | -7/Data Miner | Free M-22 Extractor | -7/Data Miner | Free S-27 Virus | -7/Data Miner | Free L-41 Fighter | -7/Data Miner | Free A-15 Conveyor | -7/Data Miner | Free D-83 Annihilator | -2/Testing | Archive Fabricated ------------ Arm. Medium Treads | x2 | -6/Factory Adv. Component Analysis Suite | x1 | -5/Factory | Preloaded Alien Tech Used ----------------- Dimensional Node Initializer Core Expander Integrated Dissipator Phase Redirector Achievements -------------- None Challenges ------------ None Game ------ Seed FusionSpliceTriangulator Manual? 0 Play Time 04:01:04 Cumulative 1545.0 hours Start 2024.04.28 @ 16:05:39 End 2024.04.28 @ 21:18:06 Sessions 5 Manual Loads 0 Difficulty Rogue Special Mode None Game No. 1063 Rogue 1059 Adventurer 4 Explorer 0 Win Type 0 Total 194 Types 142/11/14/9/2/1/3/8/4 Lore% 96 Gallery% 99 Achievement% 98 Wizard Run 0 Options --------- Layout 2 ASCII 0 Keyboard 1 Movement Vi Keybinds 0 Fullscreen 0 Font 24/Terminus Map View 59x48 Zoom Use 0% Tactical HUD 1 Map Filters NONE Filters NONE Steam 1 RUN: ad131dac-5379-4c64-ac66-b2328ecca585